Cogmind - Beta 16 @@@ ROGUE MODE // 2026.01.15 @ 22:19:08 Player: qwewqetest Result: Defending 0bPrime! Performance ------------- Evolutions (8) 4000 Regions Visited (31) 6200 Robots Destroyed (204) 1020 Value Destroyed (10741) 10741 Prototype IDs (133) 2660 Alien Tech Used (5) 1000 Bonus (19654) 19654 TOTAL SCORE: 45275 Bonus ------- High Alert Combat Kills 3024 Follower Combat Kills 511 Registered with UFD 300 Met Optimus in HQ 500 Met Data Miner 300 Met Zhirov 300 MAIN.C Attacked Warlord 500 Scanned by Researcher 500 Met Optimus at Protoforge 1000 Executed Drillbomb Mission 10000 Win 3000 Friendly Fire -281 Cogmind --------- Core Integrity 947/1450 Matter 171/300 Energy 1670/1670 System Corruption 22% Temperature Cool (0) Movement Hovering (37) Location 0bPrime Parts ------- > --- POWER (2) -------- Experimental Antimatter Reactor Concept Zero-point Core > --- PROPULSION (8) --- Combat Antigrav System Combat Linear Gravjet Experimental Antigrav System Gravjet Array Gravjet Array Concept Gyrokinetic System > --- UTILITY (11) ----- Experimental Coolant Injector Concept Antigrav Storage Unit Concept Chromion Battery Experimental Active Sensor Suite Experimental Targeting Computer Concept Countertargeting System Concept Projectile Intercept Suite Concept Weapon Articulator Concept RG22 Armor Concept Energy Mantle > --- WEAPON (2) ------- Concept Helical Railcannon Concept Deflector Sword > --- INVENTORY (25) --- Gravjet Array Gravjet Array Concept Gyrokinetic System 2N-1CE's Frost Array Concept Core Shell Experimental EM Disruption Field Concept Hardlight Director Experimental Remote Shield Experimental Remote Shield Concept Impact Drone Bay (0/6) Concept Helical Railcannon Concept Helical Railcannon Peak State ------------ > --- POWER ------------ Experimental Antimatter Reactor Concept Zero-point Core > --- PROPULSION ------- Combat Antigrav System Combat Linear Gravjet Experimental Antigrav System Gravjet Array Gravjet Array Concept Gyrokinetic System > --- UTILITY ---------- Experimental Coolant Injector Concept Antigrav Storage Unit Concept Chromion Battery Experimental Active Sensor Suite Concept Countertargeting System Concept Projectile Intercept Suite Concept Weapon Articulator Experimental Reaction Control System Concept Phase Shift Module Concept Energy Mantle > --- WEAPON ----------- Concept Helical Railcannon Concept Deflector Sword > --- INVENTORY -------- Gravjet Array Gravjet Array Concept Gyrokinetic System 2N-1CE's Frost Array Concept Core Shell Concept RG22 Armor Experimental EM Disruption Field Concept Hardlight Director Experimental Remote Shield Experimental Remote Shield Concept Impact Drone Bay Concept Helical Railcannon Concept Helical Railcannon UFD Drillbomb [Rating: 276] Favorites ----------- Power Light Fission Core Engine Ion Engine Power Core Light Fission Core Reactor Vortex Chain Reactor Propulsion Aerolev Unit Treads Light Treads Leg Aluminum Leg Hover Unit Aerolev Unit Flight Unit Improved Flight Unit Utility Medium Storage Unit Device Advanced Sensor Array Storage Medium Storage Unit Processor Advanced Signal Interpreter Hackware System Mapper Protection Light Regenerative Plating Weapon Enhanced Autogun Energy Gun Heavy Quantum Rifle Energy Cannon Cooled Nova Cannon Ballistic Gun Enhanced Autogun Ballistic Cannon Concept Helical Railcannon Launcher Mini Grenade Launcher Special Weapon Mining Laser Slashing Weapon Concept Deflector Sword Piercing Weapon Vortex Lance Build | -11 -10 -9 -9 -8 -8 -8 -8 -6 -6 -6 -6 -5 -5 -5 -5 -5 -5 -5 -4 -4 -4 -4 -4 -4 -4 -3 -3 -3 -2 -2 -2 ------- Run | Yrd Mat Mat Min Mat Sto Rec Scr Fac Low Low Dat Pro Fac Was Fac Upp Upp Zhi Pro Fac Was Fac Upp Upp War Pro Res Tes Res Qua Frg Slots Evolved 16 | . . 2 . 2 . . . 4 . . . . 2 . . . . . . 2 . . . . . . 2 . 2 . . Power 1 | . . . . . . . . . . . . . 1 . . . . . . . . . . . . . . . . . . Propulsion 6 | . . 1 . 1 . . . 2 . . . . . . . . . . . 1 . . . . . . 1 . . . . Utility 9 | . . 1 . 1 . . . 2 . . . . 1 . . . . . . 1 . . . . . . 1 . 2 . . Weapon . | . . . . . . . . . . . . . . . . . . . . . . . . . . . . . . . . Parts Attached 224 | . 9 19 . 17 11 1 3 9 1 1 . 12 4 . 15 3 1 5 . 10 . . 2 3 13 1 6 21 5 2 50 Power 29 | . 2 2 . 1 2 1 2 1 . . . 2 1 . 5 1 . 1 . . . . . . 1 . . . . 1 6 Engine 10 | . 2 2 . 1 2 1 2 . . . . . . . . . . . . . . . . . . . . . . . . Core 10 | . . . . . . . . 1 . . . 1 1 . 5 1 . . . . . . . . . . . . . . 1 Reactor 9 | . . . . . . . . . . . . 1 . . . . . 1 . . . . . . 1 . . . . 1 5 Propulsion 56 | . 4 7 . 10 1 . . 3 . . . 5 2 . 5 . . . . 3 . . . 1 2 . 2 4 2 . 5 Treads 2 | . . 2 . . . . . . . . . . . . . . . . . . . . . . . . . . . . . Leg 7 | . 2 . . 5 . . . . . . . . . . . . . . . . . . . . . . . . . . . Wheel . | . . . . . . . . . . . . . . . . . . . . . . . . . . . . . . . . Hover 44 | . 2 2 . 5 1 . . 3 . . . 5 2 . 5 . . . . 3 . . . 1 2 . 2 4 2 . 5 Flight 3 | . . 3 . . . . . . . . . . . . . . . . . . . . . . . . . . . . . Utility 91 | . 1 3 . 4 5 . 1 3 1 1 . 2 1 . 3 1 1 4 . 6 . . 1 . 8 1 1 9 3 1 30 Device 52 | . . 2 . 2 2 . 1 1 . . . 1 1 . 1 1 . 2 . 4 . . 1 . 6 . . 8 3 1 15 Storage 8 | . . . . 2 . . . . . . . 1 . . . . . 1 . . . . . . . 1 1 . . . 2 Processor 15 | . 1 1 . . . . . 1 1 . . . . . 1 . 1 . . 2 . . . . 1 . . . . . 6 Hackware 1 | . . . . . . . . . . . . . . . . . . . . . . . . . 1 . . . . . . Protection 15 | . . . . . 3 . . 1 . 1 . . . . 1 . . 1 . . . . . . . . . 1 . . 7 Artifact . | . . . . . . . . . . . . . . . . . . . . . . . . . . . . . . . . Weapon 48 | . 2 7 . 2 3 . . 2 . . . 3 . . 2 1 . . . 1 . . 1 2 2 . 3 8 . . 9 Energy Gun 11 | . 1 1 . . 1 . . . . . . . . . . . . . . . . . . 1 1 . 2 3 . . 1 Energy Cannon 5 | . . . . . . . . . . . . . . . . . . . . . . . . . . . 1 3 . . 1 Ballistic Gun 18 | . . 5 . 2 2 . . 2 . . . 2 . . 2 1 . . . . . . 1 . . . . . . . 1 Ballistic Cannon 6 | . . . . . . . . . . . . . . . . . . . . 1 . . . 1 . . . . . . 4 Launcher 3 | . . 1 . . . . . . . . . . . . . . . . . . . . . . . . . 1 . . 1 Special Weapon 1 | . 1 . . . . . . . . . . . . . . . . . . . . . . . . . . . . . . Impact Weapon . | . . . . . . . . . . . . . . . . . . . . . . . . . . . . . . . . Slashing Weapon 2 | . . . . . . . . . . . . 1 . . . . . . . . . . . . . . . . . . 1 Piercing Weapon 2 | . . . . . . . . . . . . . . . . . . . . . . . . . 1 . . 1 . . . Special Melee Weapon . | . . . . . . . . . . . . . . . . . . . . . . . . . . . . . . . . Unidentified Prototypes 64 | . . 1 . 1 3 . . 1 . . . . . . . . . 5 . 1 . . . . 11 . 3 12 1 1 24 Parts Lost 38 | . . 5 . 3 . . . . . . . 2 . 1 9 . . . 3 . . 4 . . . . 3 1 . . 7 Power 5 | . . 1 . 1 . . . . . . . . . . 1 . . . 1 . . 1 . . . . . . . . . Propulsion 8 | . . 1 . 1 . . . . . . . 1 . . 3 . . . . . . 1 . . . . . . . . 1 Utility 16 | . . . . 1 . . . . . . . 1 . . 3 . . . 1 . . 1 . . . . 3 1 . . 5 Weapon 9 | . . 3 . . . . . . . . . . . 1 2 . . . 1 . . 1 . . . . . . . . 1 Highest Loss Streak 4 | . . 2 . 1 . . . . . . . 1 . 1 4 . . . 3 . . 2 . . . . 2 1 . . 1 To Critical Strikes 2 | . . . . . . . . . . . . . . . . . . . . . . . . . . . . . . . 2 Average Backups 8 | 6 7 5 5 5 9 10 9 8 9 9 9 8 8 9 8 7 7 7 7 8 9 9 8 8 9 9 8 8 7 7 9 Power . | 1 1 1 1 . . . . 1 1 1 1 1 . . . 1 1 . . . . . . . . . . . . . . Propulsion 1 | 4 3 . . . 4 3 3 2 2 2 2 1 2 3 2 2 3 3 3 2 2 2 2 1 . . . . . . 1 Utility 3 | . 1 2 2 2 2 3 2 1 2 2 2 2 . . . . . 1 1 2 4 4 4 5 6 7 6 5 5 5 5 Weapon 2 | 1 1 1 2 1 2 4 4 3 4 4 4 4 6 6 5 4 2 2 2 2 2 2 1 . 1 2 1 2 2 2 3 Tool/Special . | . . . . . . . . . . . . . . . . . . . . . . . . . . . . . . . . Unused Backups 41 | . 14 . . . 2 . 2 1 . . . 2 . . 2 . . . . 1 . . . 1 1 . . 2 . . 13 Power 5 | . 2 . . . . . . . . . . 1 . . . . . . . . . . . . . . . . . . 2 Propulsion 14 | . 9 . . . 1 . . . . . . . . . . . . . . . . . . . . . . 2 . . 2 Utility 13 | . 2 . . . . . 2 . . . . 1 . . . . . . . . . . . 1 1 . . . . . 6 Weapon 9 | . 1 . . . 1 . . 1 . . . . . . 2 . . . . 1 . . . . . . . . . . 3 Tool/Special . | . . . . . . . . . . . . . . . . . . . . . . . . . . . . . . . . Average Slot Usage (%) 89 | . 99 94 100 91 100 100 100 93 100 93 93 95 99 98 92 81 82 71 73 81 84 78 61 72 80 83 78 82 85 86 88 Engine 2 | . 14 10 11 9 9 9 9 2 . . . . . . . . . . . . . . . . . . . . . . . Core 2 | . . . . . . . . 3 6 6 6 5 5 5 9 11 11 8 4 5 5 2 . . . . . . . . 2 Reactor 2 | . . . . . . . . . . . . . 5 4 . . . 1 5 5 5 5 5 5 5 5 4 4 4 4 5 Leg 2 | . 21 . . 12 . . . . . . . . . . . . . . . . . . . . . . . . . . . Hover 25 | . 6 12 . 8 36 36 36 36 40 40 40 40 35 35 30 17 17 17 17 21 21 18 10 14 23 26 23 31 30 30 27 Flight 1 | . . 16 33 13 . . . . . . . . . . . . . . . . . . . . . . . . . . . Device 15 | . . 10 11 10 9 9 9 9 13 6 6 8 16 17 12 10 8 7 7 13 15 15 17 21 13 9 16 16 25 26 25 Storage 6 | . 14 5 . 1 9 9 9 6 6 6 6 6 5 5 5 5 5 6 11 6 5 5 5 5 9 10 6 4 4 4 7 Processor 10 | . 13 16 22 18 10 9 9 10 13 13 13 13 11 11 11 17 19 19 11 14 15 15 15 15 14 15 14 6 4 4 5 Protection 3 | . . . . . 7 9 9 9 6 6 6 5 5 5 7 5 5 5 5 5 5 4 . . . . . 3 4 4 3 Energy Gun 1 | . 9 2 . . 1 . . . . . . . . . . . . . . . . . . 2 5 5 4 2 4 4 . Ballistic Gun 6 | . 14 16 22 18 16 18 18 13 13 13 13 11 8 10 7 5 5 . 5 8 5 5 2 4 . . . . . . . Ballistic Cannon 1 | . . . . . . . . . . . . . . . . . . . . . 5 5 4 2 4 . . . . . 2 Peak Build Rating 276 | 6 8 19 17 29 39 41 42 61 61 62 62 68 83 82 84 85 85 92 92 102 101 101 79 99 139 136 158 176 188 186 276 Average Rating 117 | 6 7 14 17 19 31 40 41 55 60 61 62 63 80 79 75 84 84 77 83 98 101 94 72 87 122 135 150 164 183 184 236 On Entrance 77 | 6 6 8 17 17 29 39 41 42 59 61 62 62 68 82 71 77 85 85 92 80 101 101 68 79 99 130 136 127 171 184 186 Avg Prop Armor Cover (%) 1 | . 9 . . 5 . . . 2 2 . . 2 . . 6 . . . . . . . . . . . . 1 . . . Naked Turns . | . . . . . . . . . . . . . . . . . . . . . . . . . . . . . . . . Heaviest Build 125 | 11 13 17 10 22 27 30 30 37 32 44 44 45 41 40 39 40 39 51 51 51 51 51 41 42 78 73 74 100 102 106 125 Greatest Support 124 | 20 20 40 15 40 32 32 32 45 53 53 53 56 65 67 70 60 60 60 60 83 83 83 52 84 84 78 98 105 113 113 124 Greatest Overweight (x) 2 | . 1 2 . 1 . . . . . . . . . . 1 . . . . . . . . . 1 . 1 1 . . 1 Average Overweight (x) . | . . . . . . . . . . . . . . . . . . . . . . . . . . . . . . . . Largest Inventory Capacity 25 | 8 8 8 5 10 10 10 10 10 10 10 10 15 10 10 10 10 10 10 10 10 10 10 10 10 10 10 10 10 10 10 25 Average Capacity 11 | 8 8 6 5 5 10 10 10 10 10 10 10 10 10 10 10 10 10 10 10 10 10 10 10 10 10 10 10 10 10 10 17 Most Carried 25 | 6 8 8 5 10 10 10 10 10 10 10 10 10 10 10 10 10 10 10 10 10 10 10 10 10 10 10 10 10 10 10 25 Average Carried 10 | 6 7 5 5 5 9 10 9 9 10 10 10 9 8 9 8 9 9 9 9 9 10 10 9 9 9 9 9 9 9 9 13 Final Capacity 25 | 8 8 5 5 10 10 10 10 10 10 10 10 10 10 10 10 10 10 10 10 10 10 10 10 10 10 10 10 10 10 10 25 Final Carried 25 | 6 8 5 5 10 10 10 10 10 10 10 10 10 10 9 10 10 10 10 9 10 10 10 10 10 10 10 9 10 10 10 25 Class Distribution -------------------- 36% | Scout 26% | Mutant 15% | Hacker-Mutant 9% | Scavenger-Mutant 4% | Scavenger-Scout 3% | Hacker-Scout Dominant Class ---------------- Mutant | -10/Materials Scout | -9/Materials Scout | -9/Mines Scout | -8/Materials Mutant | -8/Storage Mutant | -8/Recycling Mutant | -8/Scraptown Scout | -6/Factory Scout | -6/Lower Caves Scout | -6/Lower Caves Scout | -6/Data Miner Scout | -5/Proximity Caves Scavenger-Scout | -5/Factory Scavenger-Scout | -5/Waste Scavenger-Scout | -5/Factory Mutant | -5/Upper Caves Mutant | -5/Upper Caves Mutant | -5/Zhirov Mutant | -4/Proximity Caves Scout | -4/Factory Scout | -4/Waste Scout | -4/Factory Scout | -4/Upper Caves Scout | -4/Upper Caves Hacker-Mutant | -4/Warlord Hacker-Mutant | -3/Proximity Caves Hacker-Scout | -3/Research Hacker-Mutant | -3/Testing Hacker-Mutant | -2/Research Hacker-Mutant | -2/Quarantine Scout | -2/Protoforge Resources | -11 -10 -9 -9 -8 -8 -8 -8 -6 -6 -6 -6 -5 -5 -5 -5 -5 -5 -5 -4 -4 -4 -4 -4 -4 -4 -3 -3 -3 -2 -2 -2 ----------- Run | Yrd Mat Mat Min Mat Sto Rec Scr Fac Low Low Dat Pro Fac Was Fac Upp Upp Zhi Pro Fac Was Fac Upp Upp War Pro Res Tes Res Qua Frg Matter Collected 7850 | 186 195 397 . 318 857 37 31 174 202 10 . 416 106 . 683 50 50 . . . . 52 259 246 . 39 286 446 73 117 2620 Remotely . | . . . . . . . . . . . . . . . . . . . . . . . . . . . . . . . . Salvage Created 10225 | . 421 486 . 394 1136 . . 174 54 . . 444 244 . 959 39 153 . . . . 60 . 164 . . 425 544 137 353 4038 Parts 545 | . 31 41 . 17 61 . . 7 4 . . 33 14 . 50 2 1 . . . . 5 . . . . 29 37 5 30 178 Haulers Intercepted 12 | . 2 4 . . 5 . . . . . . . . . . . . . . . . . . . . . 1 . . . . Recyclers Shooed 9 | . . . . . 2 . . 2 . . . . . . 4 . . . . . . 1 . . . . . . . . . Parts Field Recycled . | . . . . . . . . . . . . . . . . . . . . . . . . . . . . . . . . Retrieved Matter . | . . . . . . . . . . . . . . . . . . . . . . . . . . . . . . . . Parts Self-Destructed 76 | . . . . . . . . . 4 . . 72 . . . . . . . . . . . . . . . . . . . Prevented . | . . . . . . . . . . . . . . . . . . . . . . . . . . . . . . . . Parts Restored . | . . . . . . . . . . . . . . . . . . . . . . . . . . . . . . . . Kills | -11 -10 -9 -9 -8 -8 -8 -8 -6 -6 -6 -6 -5 -5 -5 -5 -5 -5 -5 -4 -4 -4 -4 -4 -4 -4 -3 -3 -3 -2 -2 -2 ------- Run | Yrd Mat Mat Min Mat Sto Rec Scr Fac Low Low Dat Pro Fac Was Fac Upp Upp Zhi Pro Fac Was Fac Upp Upp War Pro Res Tes Res Qua Frg Combat Hostiles Destroyed 156 | . 10 10 . 8 11 . . 3 2 . . 10 2 . 14 . . . . . . 2 . . . . 9 10 3 6 56 Melee 16 | . . . . . . . . . . . . 1 . . 3 . . . . . . . . . . . 3 8 . . 1 Guns 74 | . 9 7 . 8 10 . . 3 2 . . 9 2 . 11 . . . . . . 2 . . . . 4 2 . 3 2 Cannons 53 | . . . . . . . . . . . . . . . . . . . . . . . . . . . . . 3 3 47 AOE 6 | . . 3 . . 1 . . . . . . . . . . . . . . . . . . . . . 2 . . . . Classes Destroyed 25 | . 5 3 . . 2 . . . . . . 3 . . . 1 . . . . . . . . . . 1 . . . 10 Worker 8 | . . 1 . . 2 . . 1 . . . . 2 . 2 . . . . . . . . . . . . . . . . Builder 3 | . . 2 . . . . . . . . . . 1 . . . . . . . . . . . . . . . . . . Tunneler 4 | . 1 . . . . . . . . . . . . . 2 . . . . . . . . . . . 1 . . . . Hauler 12 | . 2 4 . . 5 . . . . . . . . . . . . . . . . . . . . . 1 . . . . Recycler 10 | . . . . . 5 . . . . . . . 1 . 3 . . . . . . . . . . . . 1 . . . Mechanic 1 | . . . . . . . . . . . . . . . . . . . . . . . . . . . . . . . 1 Operator 1 | . . . . . . . . . . . . . . . . . . . . . . . . . . . 1 . . . . Drone 4 | . . . . . . . . . . . . 2 . . . . . . . . . . . . . . . . . . 2 Watcher 5 | . 1 1 . . 1 . . . . . . . . . . . . . . . . . . . . . . . 1 . 1 Swarmer 49 | . 6 7 . . 4 . . 1 2 . . 2 2 . 10 . . . . . . 2 . . . . 4 5 3 1 . Grunt 18 | . 4 2 . 7 . . . 1 . . . 1 . . . . . . . . . . . . . . . . . . 3 Brawler 1 | . . . . . . . . . . . . 1 . . . . . . . . . . . . . . . . . . . Duelist 1 | . . . . . . . . . . . . . . . . . . . . . . . . . . . . . . . 1 Protector 1 | . . . . . . . . . . . . . . . . . . . . . . . . . . . . . . . 1 Researcher 3 | . . . . . . . . . . . . . . . . . . . . . . . . . . . . . . . 3 Sentry 25 | . . 1 . 1 6 . . 1 . . . . . . 2 . . . . . . . . . . . . . . . 14 Hunter 9 | . . . . . 1 . . . . . . 2 . . . . . . . . . . . . . . . . . . 6 Programmer 21 | . . . . . . . . . . . . 2 . . 2 . . . . . . . . . . . 5 5 . 5 2 Hotshot 3 | . . . . . . . . . . . . . . . . . . . . . . . . . . . . . . . 3 Decapitator 10 | . . . . . . . . . . . . . . . . . . . . . . . . . . . . . . . 10 Immortal 3 | . . . . . . . . . . . . . . . . . . . . . . . . . . . . . . . 3 Striker 2 | . . . . . . . . . . . . . . . . . . . . . . . . . . . . . . . 2 Executioner 4 | . . . . . . . . . . . . . . . . . . . . . . . . . . . . . . . 4 Alpha 7 2 | . . . . . . . . . . . . . . . . . . . . . . . . . . . . . . . 2 V-Series 3 | . . . . . . . . . . . . . . . . . . . . . . . . . . . . . . . 3 Scrapoid 1 | . . . . . . . . . . . . . . . . . . . . . . . . . . . . . . . 1 Packrat 5 | . . . . . . . . . . . . . . . . . 2 . . . . . . 3 . . . . . . . Samaritan 1 | . . . . . . . . . . . . . . . . 1 . . . . . . . . . . . . . . . Best Kill Streak 7 | . 5 6 . 4 7 . . 2 2 . . 3 2 . 5 . . . . . . 2 . . . . 4 3 3 4 4 Combat Bots Only 6 | . 3 5 . 4 6 . . 2 2 . . 3 2 . 5 . . . . . . 2 . . . . 4 3 3 4 4 Max Kills in Single Turn 2 | . 1 2 . 1 2 . . 1 1 . . 1 1 . 1 1 1 . . . . 1 . 1 . . 1 1 1 1 2 Gunslinging . | . . . . . . . . . . . . . . . . . . . . . . . . . . . . . . . . Exploded 2 | . . 2 . . 1 . . . . . . . . . . . . . . . . . . . . . 1 . . . . Melee 1 | . . . . . . . . . . . . 1 . . 1 . . . . . . . . . . . 1 1 . . 1 Uniques/NPCs Destroyed . | . . . . . . . . . . . . . . . . . . . . . . . . . . . . . . . . Combat | -11 -10 -9 -9 -8 -8 -8 -8 -6 -6 -6 -6 -5 -5 -5 -5 -5 -5 -5 -4 -4 -4 -4 -4 -4 -4 -3 -3 -3 -2 -2 -2 -------- Run | Yrd Mat Mat Min Mat Sto Rec Scr Fac Low Low Dat Pro Fac Was Fac Upp Upp Zhi Pro Fac Was Fac Upp Upp War Pro Res Tes Res Qua Frg Hostile Shots Fired 1529 | . 59 55 . 73 70 . . 71 31 3 . 85 17 1 213 . 9 . 26 . . 103 . . 8 . 98 66 15 51 475 Missed 697 | . 19 22 . 25 29 . . 38 17 1 . 34 10 . 78 . 8 . 11 . . 40 . . 5 . 39 39 6 25 251 Deflected 10 | . . . . . . . . . . . . . . . . . . . . . . . . . . . . . . . 10 Hits 832 | . 40 33 . 48 41 . . 33 14 2 . 51 7 1 135 . 1 . 15 . . 63 . . 3 . 59 27 9 26 224 Melee 18 | . . . . . . . . . . . . 1 . 1 . . . . . . . . . . . . . . . . 16 Projectile 814 | . 40 33 . 48 41 . . 33 14 2 . 50 7 . 135 . 1 . 15 . . 63 . . 3 . 59 27 9 26 208 AOE 9 | . . . . 1 . . . . . . . . . . . . . . . . . . . . . . . . . . 8 Critical Strikes 50 | . 1 1 . 1 1 . . . . . . . . 1 4 . . . 2 . . 6 . . 1 . 3 . . . 29 Part Disruptions 1 | . . . . . . . . . . . . . . . . . . . . . . . . . . . . . . 1 . Damage Taken 13079 | . 378 589 . 850 503 . . 414 116 58 . 957 108 54 2384 . . . 238 . . 1103 . . 40 . 666 446 104 475 3596 Core 2007 | . 102 56 . 264 118 . . 18 19 . . 35 14 . 509 . . . 12 . . 206 . . . . 91 60 . 69 434 Absorbed by Shields 4411 | . . . . . 14 . . . . . . . . . . . . . 56 . . . . . . . 688 212 109 198 3134 Ignored by Resistances 450 | . . . . . . . . . . . . . . . . . . . . . . . . . . . . . . . 450 Regen/Repaired (Parts) 843 | . . . . . . . . 17 . . . 29 . . 213 65 55 33 32 59 . . . . 41 . . . . . 299 Core Remaining (%) 71 | 100 59 . 86 . . . 30 . . . . 91 . . . . . . 46 . . . . . . 76 . 88 . . 65 Volleys Fired 878 | . 55 43 . 47 65 . . 27 2 . . 30 6 . 41 4 . . . 5 . 11 4 10 . . 31 94 47 64 292 Largest 2 | . 2 2 . 2 2 . . 2 2 . . 2 2 . 2 1 . . . 1 . 1 1 2 . . 1 1 1 2 2 Hottest 210 | . 100 140 . 46 68 . . 50 50 . . 50 50 . 50 33 . . . 55 . 35 55 149 . . 40 80 150 150 210 Shots Fired 1267 | . 104 81 . 94 128 . . 50 4 . . 60 12 . 79 4 . . . 5 . 11 4 12 . . 31 91 47 65 385 Gun 782 | . 98 76 . 94 128 . . 50 4 . . 60 12 . 79 4 . . . 2 . 11 2 7 . . 31 45 18 30 31 Cannon 474 | . . . . . . . . . . . . . . . . . . . . 3 . . 2 5 . . . 46 29 35 354 Launcher 4 | . . 4 . . . . . . . . . . . . . . . . . . . . . . . . . . . . . Special 7 | . 6 1 . . . . . . . . . . . . . . . . . . . . . . . . . . . . . Kinetic 721 | . 49 56 . 94 123 . . 50 4 . . 60 12 . 79 4 . . . 5 . 11 4 6 . . . . . . 164 Thermal 462 | . 34 19 . . . . . . . . . . . . . . . . . . . . . 6 . . . 70 47 65 221 Explosive 4 | . . 4 . . . . . . . . . . . . . . . . . . . . . . . . . . . . . Electromagnetic 28 | . 21 2 . . 5 . . . . . . . . . . . . . . . . . . . . . . . . . . Entropic 52 | . . . . . . . . . . . . . . . . . . . . . . . . . . . 31 21 . . . Robot Hit Streak 21 | . 8 8 . 12 9 . . 5 1 . . 5 3 . 6 . . . . . . 3 . 3 . . 7 3 2 12 21 Robot Miss Streak 5 | . 4 3 . 3 4 . . 3 1 . . 3 2 . 5 . . . . . . 2 . 1 . . 2 2 3 3 4 Penetration Max 2 | . . . . . . . . . . . . . . . . . . . . . . 1 . . . . . . . . 2 Secondary Targets 7 | . . . . . 1 . . . . . . 1 1 . 4 . . . . . . . . . . . . . . . . Max Gunslinging Chain 1 | . . . . . 1 . . . . . . 1 1 . 1 . . . . . . . . . . . . . . . . Shots Hit Robots 706 | . 62 44 . 67 70 . . 24 2 . . 33 13 . 66 2 2 . . . . 6 . 7 . . 20 22 12 18 236 Core Hits 337 | . 26 29 . 21 36 . . 12 2 . . 19 6 . 35 . 2 . . . . 6 . 4 . . 14 11 5 7 102 Critical Kills 16 | . . . . . . . . . . . . . 1 . . . . . . . . 2 . . . . . . . . 13 Critical Parts Destroyed 20 | . . . . 1 1 . . . . . . . . . . . . . . . . 2 . . . . 2 . . . 14 Critical Strikes 54 | . 3 1 . 1 1 . . . . . . . 1 . 3 . . . . . . 4 . . . . 6 4 . . 30 Burn 4 | . 3 1 . . . . . . . . . . . . . . . . . . . . . . . . . . . . . Meltdown 6 | . . . . . . . . . . . . . . . . . . . . . . . . . . . . . . . 6 Destroy 30 | . . . . 1 1 . . . . . . . 1 . . . . . . . . 4 . . . . . . . . 23 Sever 4 | . . . . . . . . . . . . . . . 3 . . . . . . . . . . . . . . . 1 Detonate 2 | . . . . . . . . . . . . . . . . . . . . . . . . . . . 2 . . . . Sunder 8 | . . . . . . . . . . . . . . . . . . . . . . . . . . . 4 4 . . . Melee Attacks 130 | . . . . . . . . . . . . 10 6 . 30 3 2 . . . . . . . . . 31 39 . . 9 Impact . | . . . . . . . . . . . . . . . . . . . . . . . . . . . . . . . . Slashing 60 | . . . . . . . . . . . . 10 6 . 30 3 2 . . . . . . . . . . . . . 9 Piercing . | . . . . . . . . . . . . . . . . . . . . . . . . . . . . . . . . Entropic 70 | . . . . . . . . . . . . . . . . . . . . . . . . . . . 31 39 . . . Sneak Attacks 17 | . . . . . . . . . . . . . 4 . 5 2 2 . . . . . . . . . 2 1 . . 1 Combat Hostiles . | . . . . . . . . . . . . . . . . . . . . . . . . . . . . . . . . Follow-up Attacks . | . . . . . . . . . . . . . . . . . . . . . . . . . . . . . . . . Damage Inflicted 30138 | . 686 777 . 1019 1389 . . 484 30 . . 761 551 . 2046 168 178 . . . . 71 . 245 . . 1758 1620 494 1030 16831 Guns 8660 | . 670 590 . 1019 1336 . . 484 30 . . 654 129 . 991 . . . . . . 71 . 117 . . 524 470 192 441 942 Cannons 16423 | . . . . . . . . . . . . . . . . . . . . . . . . 128 . . . . 302 589 15404 Explosions 552 | . . 187 . . 53 . . . . . . . . . . . . . . . . . . . . . 312 . . . . Melee 4487 | . . . . . . . . . . . . 107 422 . 1055 168 178 . . . . . . . . . 922 1150 . . 485 Ramming 16 | . 16 . . . . . . . . . . . . . . . . . . . . . . . . . . . . . . Kinetic 13344 | . 263 431 . 1019 1262 . . 484 30 . . 654 129 . 991 . . . . . . 71 . 128 . . . . . . 7882 Thermal 11075 | . 239 191 . . 53 . . . . . . . . . . . . . . . . . . 117 . . 312 175 494 1030 8464 Explosive 134 | . . 134 . . . . . . . . . . . . . . . . . . . . . . . . . . . . . Electromagnetic 263 | . 168 21 . . 74 . . . . . . . . . . . . . . . . . . . . . . . . . . Impact . | . . . . . . . . . . . . . . . . . . . . . . . . . . . . . . . . Slashing 2415 | . . . . . . . . . . . . 107 422 . 1055 168 178 . . . . . . . . . . . . . 485 Piercing . | . . . . . . . . . . . . . . . . . . . . . . . . . . . . . . . . Entropic 2891 | . . . . . . . . . . . . . . . . . . . . . . . . . . . 1446 1445 . . . Highest Corruption 22 | . . . . 4 4 4 . . . . . 1 . 9 10 10 10 10 10 . 15 17 17 17 17 . 7 13 . 3 22 Average Corruption 10 | . . . . 4 4 4 . . . . . 1 . 9 9 10 10 10 10 . 7 15 17 17 17 . 2 10 . 2 12 Corruption Purged 11 | . . . . . . . . . . . . . . . . . . . . . . . . . . . . . . . 11 Corruption Blocked . | . . . . . . . . . . . . . . . . . . . . . . . . . . . . . . . . Effects 308 | . . . . 2 11 9 . . . . . 4 . 2 33 6 6 4 3 . 4 20 14 16 2 . 6 37 . 7 122 Message Errors 68 | . . . . 2 3 1 . . . . . . . 1 4 1 1 . . . 1 3 5 5 1 . 1 9 . 3 27 Matter Fused 80 | . . . . . 3 3 . . . . . 2 . . 13 3 1 3 1 . 1 2 5 4 . . . 8 . 3 28 Heat Flow Errors 40 | . . . . . 3 2 . . . . . . . . 4 1 3 . . . 1 2 4 1 . . 1 2 . . 16 Energy Discharges 24 | . . . . . . . . . . . . . . . 1 . 1 . 1 . . 2 . 1 . . . 6 . . 12 Parts Rejected 4 | . . . . . . . . . . . . . . 1 . . . . . . . 1 . . . . . 1 . . 1 Parts Fused 5 | . . . . . . 1 . . . . . . . . . . . . . . . 1 . . . . 1 . . . 2 Data Loss (minor) 28 | . . . . . 1 2 . . . . . 1 . . 2 1 . . . . . 1 . . 1 . 1 6 . 1 11 Data Loss (major) 20 | . . . . . 1 . . . . . . 1 . . 4 . . 1 . . . . . 3 . . 2 2 . . 6 Misfires 2 | . . . . . . . . . . . . . . . 1 . . . . . . . . 1 . . . . . . . Alerts 8 | . . . . . . . . . . . . . . . . . . . . . . 3 . 1 . . . . . . 4 Misdirections 18 | . . . . . . . . . . . . . . . 2 . . . 1 . 1 5 . . . . . . . . 9 Weapon Failures 11 | . . . . . . . . . . . . . . . 2 . . . . . . . . . . . . 3 . . 6 Overload Shots 10 | . . . . . . . . . . . . . . . . . . . . . . . . . . . . . 1 3 6 Effects 1 | . . . . . . . . . . . . . . . . . . . . . . . . . . . . . . . 1 Energy Bleed 1 | . . . . . . . . . . . . . . . . . . . . . . . . . . . . . . . 1 Overflow Damage 1412 | . . 96 . . . . . . . . . . 129 . 198 112 . . . . . . . 21 . . 54 73 . 78 651 Projectiles 750 | . . . . . . . . . . . . . . . . . . . . . . . . 21 . . . . . 78 651 Explosions 96 | . . 96 . . . . . . . . . . . . . . . . . . . . . . . . . . . . . Melee 566 | . . . . . . . . . . . . . 129 . 198 112 . . . . . . . . . . 54 73 . . . Knockbacks 48 | . 1 . . . . . . . . . . . . . . . . . . . . . . 2 . . . . . . 45 Impact 1 | . 1 . . . . . . . . . . . . . . . . . . . . . . . . . . . . . . Kinetic 45 | . . . . . . . . . . . . . . . . . . . . . . . . 2 . . . . . . 43 Secondary 2 | . . . . . . . . . . . . . . . . . . . . . . . . . . . . . . . 2 Self-Inflicted Damage 369 | . . 248 . . 35 . . . . . . . . . . . . . . . . . . . . . 86 . . . . Shots 5 | . . 3 . . 1 . . . . . . . . . . . . . . . . . . . . . 1 . . . . Rammed . | . . . . . . . . . . . . . . . . . . . . . . . . . . . . . . . . Targets Rammed 8 | . 8 . . . . . . . . . . . . . . . . . . . . . . . . . . . . . . Kicked 8 | . 8 . . . . . . . . . . . . . . . . . . . . . . . . . . . . . . Crushed . | . . . . . . . . . . . . . . . . . . . . . . . . . . . . . . . . Highest Temperature 446 | . 188 21 . 18 328 232 . 208 13 201 42 174 . . 195 220 128 . 74 259 129 380 206 256 . . 261 446 . 3 297 Average Temperature 63 | . 46 5 . 10 91 109 . 90 5 77 19 40 . . 31 101 65 . 34 95 54 157 87 111 . . 125 71 . 3 45 Received Heat Transfer 2015 | . 138 99 . 390 108 . . 114 36 12 . 30 9 . 189 . . . 88 . . 27 . . 9 . 24 28 . 4 710 Effects 6 | . . . . . 1 . . . . . . . . . . . . . . 4 . . . . . . . 1 . . . Energy Bleed 2 | . . . . . 1 . . . . . . . . . . . . . . . . . . . . . . 1 . . . Interference 4 | . . . . . . . . . . . . . . . . . . . . 4 . . . . . . . . . . . Siege Activations . | . . . . . . . . . . . . . . . . . . . . . . . . . . . . . . . . Martial Activations . | . . . . . . . . . . . . . . . . . . . . . . . . . . . . . . . . Shielding Activations . | . . . . . . . . . . . . . . . . . . . . . . . . . . . . . . . . Robots Disrupted . | . . . . . . . . . . . . . . . . . . . . . . . . . . . . . . . . Combat Hostiles . | . . . . . . . . . . . . . . . . . . . . . . . . . . . . . . . . Robots Corrupted . | . . . . . . . . . . . . . . . . . . . . . . . . . . . . . . . . Combat Hostiles . | . . . . . . . . . . . . . . . . . . . . . . . . . . . . . . . . Parts Fried . | . . . . . . . . . . . . . . . . . . . . . . . . . . . . . . . . Impact Corruptions 2 | . . . . . . . . . . . . . . . . . . . . . . . . . . . . . . . 2 Robots Melted 7 | . 1 . . . . . . . . . . . . . . . . . . . . . . . . . . . . . 6 Combat Hostiles 7 | . 1 . . . . . . . . . . . . . . . . . . . . . . . . . . . . . 6 Parts Melted 12 | . . . . . . . . . . . . . . . . . . . . . . . . . . . . . 1 1 10 Heat Transferred 9190 | . 925 581 . . 50 . . . . . . . . . . . . . . . . . . 148 . . 200 148 444 705 5989 Parts Sabotaged 2 | . . . . . . . . . . . . . . . . . . . . . . . . . . . . . . . 2 Parts Stolen . | . . . . . . . . . . . . . . . . . . . . . . . . . . . . . . . . Parts Stripped . | . . . . . . . . . . . . . . . . . . . . . . . . . . . . . . . . Power Chain Reactions 2 | . . 1 . . 1 . . . . . . . . . . . . . . . . . . . . . . . . . . Alert | -11 -10 -9 -9 -8 -8 -8 -8 -6 -6 -6 -6 -5 -5 -5 -5 -5 -5 -5 -4 -4 -4 -4 -4 -4 -4 -3 -3 -3 -2 -2 -2 ------- Run | Yrd Mat Mat Min Mat Sto Rec Scr Fac Low Low Dat Pro Fac Was Fac Upp Upp Zhi Pro Fac Was Fac Upp Upp War Pro Res Tes Res Qua Frg Maximum Alert Level 5 | . . . . . 1 1 . 1 . . . . 2 . . . . . . . . . . . . . 1 2 1 1 5 Low Security (%) 56 | 100 100 100 100 100 82 93 . 75 . . . . . 100 100 . . . . 100 100 100 . . . . 82 19 84 29 9 Level 1 19 | . . . . . 17 6 . 24 . . . . 68 . . . . . . . . . . . . . 17 79 15 70 18 Level 2 2 | . . . . . . . . . . . . . 31 . . . . . . . . . . . . . . 1 . . 6 Level 3 2 | . . . . . . . . . . . . . . . . . . . . . . . . . . . . . . . 9 Level 4 8 | . . . . . . . . . . . . . . . . . . . . . . . . . . . . . . . 25 Level 5 9 | . . . . . . . . . . . . . . . . . . . . . . . . . . . . . . . 30 High Security . | . . . . . . . . . . . . . . . . . . . . . . . . . . . . . . . . Max Security . | . . . . . . . . . . . . . . . . . . . . . . . . . . . . . . . . Peak Influence 2958 | . 167 179 66 151 319 214 . 240 . . . . 415 80 186 . . . . 49 . 115 . . . . 334 403 240 289 2958 Initial 306 | . . 11 66 9 43 120 . . . . . . 306 80 35 . . . . 34 . . . . . . . 173 168 134 143 Average 468 | . 73 111 46 86 123 102 . 138 . . . . 349 68 88 . . . . 6 . 35 . . . . 96 257 177 215 1206 Influence Increases 9524 | . 418 432 . 274 494 158 . 390 85 . . 335 474 . 565 . . . 75 21 . 170 . . . . 626 691 231 343 3742 Destroy 0b10 Robot/C 3220 | . 200 200 . 160 220 . . 60 40 . . 160 40 . 280 . . . . . . 40 . . . . 180 200 60 120 1260 Destroy 0b10 Robot/NC 260 | . 20 40 . . 65 . . 5 . . . 10 20 . 35 . . . . . . . . . . . 15 5 5 . 40 Destroy Leader 534 | . 46 50 . 30 92 . . 10 . . . 30 . . 40 . . . . . . 10 . . . . 32 30 12 10 142 Allied During Kill 46 | . . . . . . . . . . . . . . . . . . . . . . . . . . . . . . . 46 Successful Hack 178 | . 12 8 . 8 7 8 . . . . . . 7 . 8 . . . . . . . . . . . 44 58 . 18 . Select Force Hacks 150 | . . . . . . 150 . . . . . . . . . . . . . . . . . . . . . . . . . Disable Machine 780 | . 15 45 . . 30 . . 15 . . . . . . . . . . . 15 . . . . . . 15 195 15 30 405 Destroy Structure 1356 | . 5 74 . 1 5 . . . . . . . 2 . 22 . . . . 6 . . . . . . 100 128 94 120 799 Advance Influence 300 | . . . . . . . . . . . . . 300 . . . . . . . . . . . . . . . . . . Partial Spotted 300 | . . . . 15 60 . . 15 . . . . 45 . 30 . . . . . . . . . . . 60 . 15 . 60 Lose Combat Pursuer 2400 | . 120 15 . 60 15 . . 285 45 . . 135 60 . 150 . . . 75 . . 120 . . . . 180 75 30 45 990 Influence Decreases 6566 | . 390 289 145 196 288 468 . 150 239 86 . 325 254 180 437 157 21 . 20 74 2 100 70 . . . 318 699 292 327 1039 Entered New Map 1270 | . . 17 105 17 61 190 . . 89 17 . . 4 150 15 67 5 . . 21 2 . 26 . . . . 135 132 105 112 Time Decay 4375 | . 390 222 40 149 204 160 . 150 150 69 . 285 100 20 332 90 16 . 20 53 . 70 44 . . . 288 404 160 222 737 Lost Part 340 | . . 50 . 30 . . . . . . . 20 . 10 90 . . . . . . 30 . . . . 30 10 . . 70 Lost Ally 163 | . . . . . 23 . . . . . . 20 . . . . . . . . . . . . . . . . . . 120 Purge Threat 418 | . . . . . . 118 . . . . . . 150 . . . . . . . . . . . . . . 150 . . . Squads Dispatched 57 | . 1 1 . 3 3 . . 9 . . . 1 2 . 7 . . . . . . 3 . . . . 12 3 1 3 8 Investigation 20 | . . . . . 1 . . 6 . . . . 1 . 4 . . . . . . 1 . . . . 5 . . . 2 Extermination 17 | . . . . . . . . 1 . . . . 1 . 2 . . . . . . 1 . . . . 4 3 1 3 1 Reinforcement 16 | . 1 1 . 1 2 . . 2 . . . . . . 1 . . . . . . 1 . . . . 2 . . . 5 Assault 1 | . . . . . . . . . . . . 1 . . . . . . . . . . . . . . . . . . . Garrison 3 | . . . . 2 . . . . . . . . . . . . . . . . . . . . . . 1 . . . . Intercept . | . . . . . . . . . . . . . . . . . . . . . . . . . . . . . . . . Searches Triggered . | . . . . . . . . . . . . . . . . . . . . . . . . . . . . . . . . Data Miner Redirects 2 | . . . . . . . . . . . . . 1 . . . . . . . . . . . . . 1 . . . . Construction Impeded 1 | . . 1 . . . . . . . . . . . . . . . . . . . . . . . . . . . . . Haulers Reinforced . | . . . . . . . . . . . . . . . . . . . . . . . . . . . . . . . . Active Scanning Responses . | . . . . . . . . . . . . . . . . . . . . . . . . . . . . . . . . Cargo Convoy Interrupts . | . . . . . . . . . . . . . . . . . . . . . . . . . . . . . . . . Stealth | -11 -10 -9 -9 -8 -8 -8 -8 -6 -6 -6 -6 -5 -5 -5 -5 -5 -5 -5 -4 -4 -4 -4 -4 -4 -4 -3 -3 -3 -2 -2 -2 --------- Run | Yrd Mat Mat Min Mat Sto Rec Scr Fac Low Low Dat Pro Fac Was Fac Upp Upp Zhi Pro Fac Was Fac Upp Upp War Pro Res Tes Res Qua Frg Distress Signals 23 | . 2 . . 1 5 . . 1 . . . . . . 2 . . . . . . 1 . . . . 1 . 2 1 7 Communications Jammed 46 | . . . . . . . . . . . . . . . . . . . . . . . . . . . 42 . . 4 . Distress Signals 28 | . . . . . . . . . . . . . . . . . . . . . . . . . . . 24 . . 4 . Times Spotted 474 | . 22 19 . 20 17 . . 24 5 1 . 33 6 5 34 . 1 . 8 . 5 21 . . 12 . 41 24 9 11 156 Peak Tracking Total 19 | . 4 6 . 5 8 . . 12 3 1 . 7 4 6 9 . 1 . 5 . 5 8 . . 12 . 9 6 4 8 19 Tactical Retreats 85 | . 6 1 . 1 1 . . 7 2 . . 7 1 . 8 . . . 2 . 1 5 . . . . 7 2 2 1 31 Traps | -11 -10 -9 -9 -8 -8 -8 -8 -6 -6 -6 -6 -5 -5 -5 -5 -5 -5 -5 -4 -4 -4 -4 -4 -4 -4 -3 -3 -3 -2 -2 -2 ------- Run | Yrd Mat Mat Min Mat Sto Rec Scr Fac Low Low Dat Pro Fac Was Fac Upp Upp Zhi Pro Fac Was Fac Upp Upp War Pro Res Tes Res Qua Frg Traps Triggered 36 | . 2 . . . 2 . . 2 . . . . 2 . 2 . . . . 1 . . . . . . 2 1 . . 22 Indirectly . | . . . . . . . . . . . . . . . . . . . . . . . . . . . . . . . . Trap Hack Attempts . | . . . . . . . . . . . . . . . . . . . . . . . . . . . . . . . . Triggered . | . . . . . . . . . . . . . . . . . . . . . . . . . . . . . . . . Disarmed . | . . . . . . . . . . . . . . . . . . . . . . . . . . . . . . . . Reprogrammed . | . . . . . . . . . . . . . . . . . . . . . . . . . . . . . . . . Reused . | . . . . . . . . . . . . . . . . . . . . . . . . . . . . . . . . Traps Extracted . | . . . . . . . . . . . . . . . . . . . . . . . . . . . . . . . . Installed . | . . . . . . . . . . . . . . . . . . . . . . . . . . . . . . . . Triggered . | . . . . . . . . . . . . . . . . . . . . . . . . . . . . . . . . Machines | -11 -10 -9 -9 -8 -8 -8 -8 -6 -6 -6 -6 -5 -5 -5 -5 -5 -5 -5 -4 -4 -4 -4 -4 -4 -4 -3 -3 -3 -2 -2 -2 ---------- Run | Yrd Mat Mat Min Mat Sto Rec Scr Fac Low Low Dat Pro Fac Was Fac Upp Upp Zhi Pro Fac Was Fac Upp Upp War Pro Res Tes Res Qua Frg Machines Disabled 75 | . 1 3 . . 2 . . 1 . . . . . . . . . . . 1 . . 2 . . . 1 19 1 2 42 Max in Single Turn 2 | . 1 2 . . 1 . . 1 . . . . . . . . . . . 1 . . 1 . . . 1 1 1 1 2 Garrison Access 4 | . . . . 1 . . . . . . . . . . . . . . . . . . . . . . . 1 1 . 1 Machines Repaired . | . . . . . . . . . . . . . . . . . . . . . . . . . . . . . . . . Machines Dismantled . | . . . . . . . . . . . . . . . . . . . . . . . . . . . . . . . . Machines Sabotaged . | . . . . . . . . . . . . . . . . . . . . . . . . . . . . . . . . Overloaded Fab Kills . | . . . . . . . . . . . . . . . . . . . . . . . . . . . . . . . . Hacking | -11 -10 -9 -9 -8 -8 -8 -8 -6 -6 -6 -6 -5 -5 -5 -5 -5 -5 -5 -4 -4 -4 -4 -4 -4 -4 -3 -3 -3 -2 -2 -2 --------- Run | Yrd Mat Mat Min Mat Sto Rec Scr Fac Low Low Dat Pro Fac Was Fac Upp Upp Zhi Pro Fac Was Fac Upp Upp War Pro Res Tes Res Qua Frg Machines Accessed 84 | . 7 2 . 2 2 11 2 6 . . 4 . 2 . 6 . . 4 . 3 . 1 1 . 1 . 11 6 3 4 6 Terminals 39 | . 7 2 . 1 2 6 . . . . . . 2 . 2 . . . . 1 . . . . . . 4 5 1 4 2 Fabricators . | . . . . . . . . . . . . . . . . . . . . . . . . . . . . . . . . Repair Stations 1 | . . . . . . . . . . . . . . . . . . . . . . . . . . . . . 1 . . Recycling Units 26 | . . . . . . 5 . 6 . . . . . . 4 . . . . 2 . 1 . . . . 5 . . . 3 Scanalyzers . | . . . . . . . . . . . . . . . . . . . . . . . . . . . . . . . . Garrison Access 6 | . . . . 1 . . . . . . . . . . . . . . . . . . . . . . 2 1 1 . 1 Total Hacks 186 | . 10 4 . 6 2 21 6 8 . . 27 . 6 . 10 . . 17 . 6 . 2 1 . 1 . 30 13 4 6 6 Successful 118 | . 6 1 . 3 2 12 6 5 . . 27 . 2 . 4 . . 17 . . . 1 1 . 1 . 14 9 1 1 5 Failed 68 | . 4 3 . 3 . 9 . 3 . . . . 4 . 6 . . . . 6 . 1 . . . . 16 4 3 5 1 Catastrophic 14 | . 1 2 . 1 . 1 . . . . . . . . 2 . . . . 2 . 1 . . . . 1 . 1 2 . Database Lockouts . | . . . . . . . . . . . . . . . . . . . . . . . . . . . . . . . . Manual 83 | . 10 1 . 2 1 19 . 8 . . . . . . 9 . . . . 5 . 1 . . 1 . 18 3 . 2 3 Terminals 85 | . 10 4 . 3 2 15 . . . . . . 6 . 4 . . . . 1 . . . . . . 19 12 1 6 2 Fabricators . | . . . . . . . . . . . . . . . . . . . . . . . . . . . . . . . . Repair Stations 1 | . . . . . . . . . . . . . . . . . . . . . . . . . . . . . 1 . . Recycling Units 37 | . . . . . . 6 . 8 . . . . . . 6 . . . . 5 . 2 . . . . 7 . . . 3 Scanalyzers . | . . . . . . . . . . . . . . . . . . . . . . . . . . . . . . . . Garrison Access 11 | . . . . 3 . . . . . . . . . . . . . . . . . . . . . . 4 1 2 . 1 Terminal Hacks 82 | . . 1 . 2 2 1 6 . . . 27 . 2 . 1 . . 17 . . . . 1 . 1 . 10 8 . 1 2 Record 24 | . . . . . . . 5 . . . 11 . . . . . . 5 . . . . 1 . . . . 1 . . 1 Part Schematic 12 | . . . . . . . . . . . 8 . . . . . . 4 . . . . . . . . . . . . . Robot Schematic 5 | . . . . . . . . . . . 5 . . . . . . . . . . . . . . . . . . . . Robot Analysis 5 | . . . . 1 . . . . . . . . . . . . . 4 . . . . . . . . . . . . . Prototype ID Bank 8 | . . . . . . . . . . . 3 . . . . . . 4 . . . . . . . . . 1 . . . Open Door 3 | . . . . . 2 . . . . . . . . . . . . . . . . . . . 1 . . . . . . Level Access Points 2 | . . . . . . . . . . . . . . . . . . . . . . . . . . . 1 1 . . . Branch Access Points 6 | . . 1 . 1 . . . . . . . . 1 . 1 . . . . . . . . . . . 1 1 . . . Terminal Index 1 | . . . . . . . . . . . . . . . . . . . . . . . . . . . . 1 . . . Recycling Unit Index 1 | . . . . . . . . . . . . . . . . . . . . . . . . . . . 1 . . . . Garrison Index 1 | . . . . . . . . . . . . . . . . . . . . . . . . . . . 1 . . . . Unreport Threat 4 | . . . . . . 1 . . . . . . 1 . . . . . . . . . . . . . 1 1 . . . Security Status 2 | . . . . . . . . . . . . . . . . . . . . . . . . . . . 2 . . . . Recall Investigation 1 | . . . . . . . . . . . . . . . . . . . . . . . . . . . 1 . . . . Hauler Manifests 1 | . . . . . . . . . . . . . . . . . . . . . . . . . . . 1 . . . . Registered Prototypes 1 | . . . . . . . . . . . . . . . . . . . . . . . . . . . 1 . . . . Zone Layout 3 | . . . . . . . . . . . . . . . . . . . . . . . . . . . . 2 . 1 . Proto ID Catalog 2 | . . . . . . . 1 . . . . . . . . . . . . . . . . . . . . . . . 1 Fabricator Hacks . | . . . . . . . . . . . . . . . . . . . . . . . . . . . . . . . . Repair Station Hacks . | . . . . . . . . . . . . . . . . . . . . . . . . . . . . . . . . Recycling Unit Hacks . | . . . . . . . . . . . . . . . . . . . . . . . . . . . . . . . . Scanalyzer . | . . . . . . . . . . . . . . . . . . . . . . . . . . . . . . . . Garrison Access Hacks 4 | . . . . 1 . . . . . . . . . . . . . . . . . . . . . . . 1 1 . 1 Seal Access 4 | . . . . 1 . . . . . . . . . . . . . . . . . . . . . . . 1 1 . 1 Unauthorized Hacks 31 | . 6 . . . . 10 . 5 . . . . . . 3 . . . . . . 1 . . . . 4 . . . 2 Terminals 11 | . 6 . . . . 5 . . . . . . . . . . . . . . . . . . . . . . . . . Skim 11 | . 6 . . . . 5 . . . . . . . . . . . . . . . . . . . . . . . . . Fabricators . | . . . . . . . . . . . . . . . . . . . . . . . . . . . . . . . . Repair Stations . | . . . . . . . . . . . . . . . . . . . . . . . . . . . . . . . . Recycling Units 20 | . . . . . . 5 . 5 . . . . . . 3 . . . . . . 1 . . . . 4 . . . 2 Tunnel 5 | . . . . . . 5 . . . . . . . . . . . . . . . . . . . . . . . . . Fedlink 15 | . . . . . . . . 5 . . . . . . 3 . . . . . . 1 . . . . 4 . . . 2 Scanalyzers . | . . . . . . . . . . . . . . . . . . . . . . . . . . . . . . . . Garrison Access . | . . . . . . . . . . . . . . . . . . . . . . . . . . . . . . . . Data Cores Recovered 1 | . . . . . . . . . . . . . . . . . . . . . . . . . . . 1 . . . . Used 1 | . . . . . . . . . . . . . . . . . . . . . . . . . . . 1 . . . . Hacking Detections 42 | . 3 1 . 1 . 5 . 2 . . . . 2 . 3 . . . . 3 . 1 . . . . 8 5 2 4 2 Full Trace Events 4 | . . . . . . 1 . . . . . . 1 . 1 . . . . . . . . . . . 1 . . . . Feedback Events . | . . . . . . . . . . . . . . . . . . . . . . . . . . . . . . . . Feedback Blocked . | . . . . . . . . . . . . . . . . . . . . . . . . . . . . . . . . Robot Schematics Acquired 7 | . . . . . . . . . . . 5 . . . . . . . . . . . . . . . . . . . 2 Robots Built . | . . . . . . . . . . . . . . . . . . . . . . . . . . . . . . . . Authchips . | . . . . . . . . . . . . . . . . . . . . . . . . . . . . . . . . Time . | . . . . . . . . . . . . . . . . . . . . . . . . . . . . . . . . Total Robot Build Rating . | . . . . . . . . . . . . . . . . . . . . . . . . . . . . . . . . Part Schematics Acquired 18 | . . . . . . . . . . . 8 . . . . . . 4 . . . . . . . . . . . . 6 Parts Built . | . . . . . . . . . . . . . . . . . . . . . . . . . . . . . . . . Authchips . | . . . . . . . . . . . . . . . . . . . . . . . . . . . . . . . . Time . | . . . . . . . . . . . . . . . . . . . . . . . . . . . . . . . . Total Part Build Rating . | . . . . . . . . . . . . . . . . . . . . . . . . . . . . . . . . Part Studies Acquired . | . . . . . . . . . . . . . . . . . . . . . . . . . . . . . . . . Parts Repaired . | . . . . . . . . . . . . . . . . . . . . . . . . . . . . . . . . Time . | . . . . . . . . . . . . . . . . . . . . . . . . . . . . . . . . Parts Recycled . | . . . . . . . . . . . . . . . . . . . . . . . . . . . . . . . . Recycled Matter . | . . . . . . . . . . . . . . . . . . . . . . . . . . . . . . . . Retrieved Matter . | . . . . . . . . . . . . . . . . . . . . . . . . . . . . . . . . Retrieved Components . | . . . . . . . . . . . . . . . . . . . . . . . . . . . . . . . . Parts Scanalyzed . | . . . . . . . . . . . . . . . . . . . . . . . . . . . . . . . . Part Schematics Acquired . | . . . . . . . . . . . . . . . . . . . . . . . . . . . . . . . . Parts Damaged . | . . . . . . . . . . . . . . . . . . . . . . . . . . . . . . . . Bothacking | -11 -10 -9 -9 -8 -8 -8 -8 -6 -6 -6 -6 -5 -5 -5 -5 -5 -5 -5 -4 -4 -4 -4 -4 -4 -4 -3 -3 -3 -2 -2 -2 ------------ Run | Yrd Mat Mat Min Mat Sto Rec Scr Fac Low Low Dat Pro Fac Was Fac Upp Upp Zhi Pro Fac Was Fac Upp Upp War Pro Res Tes Res Qua Frg Used RIF Installer . | . . . . . . . . . . . . . . . . . . . . . . . . . . . . . . . . Robots Hacked . | . . . . . . . . . . . . . . . . . . . . . . . . . . . . . . . . Non-combat . | . . . . . . . . . . . . . . . . . . . . . . . . . . . . . . . . Combat . | . . . . . . . . . . . . . . . . . . . . . . . . . . . . . . . . Robot Hacks Applied . | . . . . . . . . . . . . . . . . . . . . . . . . . . . . . . . . Relay Couplers Released . | . . . . . . . . . . . . . . . . . . . . . . . . . . . . . . . . Fabnet Peak Effective % . | . . . . . . . . . . . . . . . . . . . . . . . . . . . . . . . . Robots Rewired 2 | . . . . . . . . . . . . 2 . . . . . . . . . . . . . . . . . . . Allies Hacked . | . . . . . . . . . . . . . . . . . . . . . . . . . . . . . . . . Hacks Repelled . | . . . . . . . . . . . . . . . . . . . . . . . . . . . . . . . . Allies | -11 -10 -9 -9 -8 -8 -8 -8 -6 -6 -6 -6 -5 -5 -5 -5 -5 -5 -5 -4 -4 -4 -4 -4 -4 -4 -3 -3 -3 -2 -2 -2 -------- Run | Yrd Mat Mat Min Mat Sto Rec Scr Fac Low Low Dat Pro Fac Was Fac Upp Upp Zhi Pro Fac Was Fac Upp Upp War Pro Res Tes Res Qua Frg Total Allies 2 | . . . . . . . . . . . . 2 . . . . . . . . . . . . . . . . . . . Largest Group 2 | . . . . . . . . . . . . 2 . . . . . . . . . . . . . . . . . . . Highest-Rated Group 78 | . . . . . . . . . . . . 78 . . . . . . . . . . . . . . . . . . . Highest-Rated Ally 49 | . . . . . . . . . . . . 49 . . . . . . . . . . . . . . . . . . . Total Orders 3 | . . . . . 2 . . . . . . . . . . . . . . . . . . . . . . . . . 1 EXPLORE 3 | . . . . . 2 . . . . . . . . . . . . . . . . . . . . . . . . . 1 Ally Attacks 60 | . . . . . . . . . . . . 10 . . . . . . . . . . . . . . . . . . 50 Total Damage 2455 | . . . . . . . . . . . . 233 . . . . . . . . . . . . . . . . . . 2222 Kills 8 | . . . . . . . . . . . . . . . . . . . . . . . . . . . . . . . 8 Allies Corrupted . | . . . . . . . . . . . . . . . . . . . . . . . . . . . . . . . . Allies Melted 5 | . . . . . . . . . . . . . . . . . . . . . . . . . . . . . . . 5 Intel | -11 -10 -9 -9 -8 -8 -8 -8 -6 -6 -6 -6 -5 -5 -5 -5 -5 -5 -5 -4 -4 -4 -4 -4 -4 -4 -3 -3 -3 -2 -2 -2 ------- Run | Yrd Mat Mat Min Mat Sto Rec Scr Fac Low Low Dat Pro Fac Was Fac Upp Upp Zhi Pro Fac Was Fac Upp Upp War Pro Res Tes Res Qua Frg Active Infowar (turns) 14187 | . 1235 467 98 318 441 516 592 348 315 289 35 985 206 56 761 194 167 104 97 389 151 358 326 309 305 102 786 963 329 470 2475 Optics 876 | . . . . . . . . . . . . . . . 87 194 167 104 97 227 . . . . . . . . . . . Sensors 8092 | . . 223 98 265 . . . 155 315 289 35 985 206 56 618 . . . . 356 151 208 259 309 287 102 786 963 329 424 673 A.S.S. 1773 | . . . . . . . . . . . . . . . . . . . . . . . . . . . . . . . 1773 Terrain 2072 | . . . . . . . . . . . . . . . . . . . . 163 151 358 326 309 36 . 729 . . . . T.N.C. 8838 | . 1235 467 98 318 441 516 592 348 315 289 35 985 206 56 761 194 167 104 97 389 151 358 326 309 81 . . . . . . Jamming 2185 | . . . . . . . . . . . . . . . . 186 167 103 97 226 . . . . . . 392 . 323 470 221 Robot Analysis Total 5 | . . . . 1 . . . . . . . . . . . . . 4 . . . . . . . . . . . . . Derelict Logs Recovered 8 | . . . 1 . . . . . . . . 1 . . . 1 1 . . . . . 2 2 . . . . . . . Drone Launches 10 | . . . . . 4 . . . . . . . . . . . . . . . . . . . . . . . . . 6 Drone Recoveries . | . . . . . . . . . . . . . . . . . . . . . . . . . . . . . . . . Exploration | -11 -10 -9 -9 -8 -8 -8 -8 -6 -6 -6 -6 -5 -5 -5 -5 -5 -5 -5 -4 -4 -4 -4 -4 -4 -4 -3 -3 -3 -2 -2 -2 ------------- Run | Yrd Mat Mat Min Mat Sto Rec Scr Fac Low Low Dat Pro Fac Was Fac Upp Upp Zhi Pro Fac Was Fac Upp Upp War Pro Res Tes Res Qua Frg Turns Passed 15515 | 8 1288 467 98 318 441 516 592 348 315 289 35 985 206 56 761 194 167 104 97 389 151 358 326 309 305 102 786 974 329 470 3731 Spaces Moved 24555 | 7 937 602 286 238 441 884 1529 634 817 695 76 1856 399 112 921 327 299 155 185 497 278 531 515 532 536 249 1348 1490 613 692 5874 Core . | . . . . . . . . . . . . . . . . . . . . . . . . . . . . . . . . Treads 24 | . . 24 . . . . . . . . . . . . . . . . . . . . . . . . . . . . . Legs 722 | 7 672 . . 43 . . . . . . . . . . . . . . . . . . . . . . . . . . . Wheels . | . . . . . . . . . . . . . . . . . . . . . . . . . . . . . . . . Hover 23022 | . 265 132 . 140 441 884 1529 634 817 695 76 1856 399 112 921 327 299 155 185 497 278 531 515 532 536 249 1348 1490 613 692 5874 Flight 787 | . . 446 286 55 . . . . . . . . . . . . . . . . . . . . . . . . . . . Fastest Speed 34 | 120 56 34 34 34 38 38 38 34 35 35 35 35 38 46 46 52 52 52 52 48 48 48 56 48 40 40 40 38 34 37 34 Average Speed 42 | 120 102 45 34 52 38 38 38 34 35 35 35 36 40 46 54 52 52 52 52 48 48 50 56 52 42 40 40 38 34 37 37 Slowest Speed 200 | 120 190 200 34 190 38 38 38 40 40 35 35 42 46 53 111 52 52 52 52 52 48 56 56 56 100 40 93 93 37 37 108 Overloaded Moves . | . . . . . . . . . . . . . . . . . . . . . . . . . . . . . . . . Propulsion Burnouts . | . . . . . . . . . . . . . . . . . . . . . . . . . . . . . . . . Robots Hopped 1 | . . . 1 . . . . . . . . . . . . . . . . . . . . . . . . . . . . Potential Cave-ins 4 | . . . . . . . . . . . . . . . . . . . . . . . . . . . . 2 . 2 . Cave-ins Triggered . | . . . . . . . . . . . . . . . . . . . . . . . . . . . . . . . . Teleports 1 | . . . . . . . . . . . . . . . . . . . . . . . . . 1 . . . . . . Exploration Rate (%) 55 | 2 79 41 64 22 70 99 88 19 62 69 68 98 11 67 31 61 57 63 46 12 77 18 63 59 70 42 48 92 16 61 85 Regions Visited 31 Branch Regions 19 Pre-discovered Areas 14 | . 1 . . . . 5 . 1 . . 1 . . . . . 1 3 . . . . 1 1 . . . . . . . Known Exits Taken 23 | . 1 1 1 1 1 . . 1 1 1 1 1 . . 1 1 1 . 1 . . 1 1 1 1 1 1 1 1 1 . Unknown Exits Taken 4 | 1 . . . . . 1 1 . . . . . . . . . . 1 . . . . . . . . . . . . . Scrap Searched 26 | . . . 1 . . . 4 . 4 1 . 5 . . . 2 2 . . . . . 3 3 . 1 . . . . . Spaces Dug 179 | . 4 . . . . . . . . . . 7 1 . 11 2 . . . 3 . . . 1 . . 26 38 13 22 51 Terrain Destroyed 557 | . 5 80 . . 4 . . 1 . . . 7 1 . 11 2 . . . 4 . . . 4 . . 56 73 31 44 234 Melee 43 | . . . . . . . . . . . . 7 1 . 11 1 . . . . . . . . . . 16 7 . . . Projectile 410 | . 5 1 . . . . . 1 . . . . . . . 1 . . . 4 . . . 4 . . 19 66 31 44 234 AOE 104 | . . 79 . . 4 . . . . . . . . . . . . . . . . . . . . . 21 . . . . Terrain Rammed . | . . . . . . . . . . . . . . . . . . . . . . . . . . . . . . . . Walls Destroyed . | . . . . . . . . . . . . . . . . . . . . . . . . . . . . . . . . Machines Disabled . | . . . . . . . . . . . . . . . . . . . . . . . . . . . . . . . . Actions | -11 -10 -9 -9 -8 -8 -8 -8 -6 -6 -6 -6 -5 -5 -5 -5 -5 -5 -5 -4 -4 -4 -4 -4 -4 -4 -3 -3 -3 -2 -2 -2 --------- Run | Yrd Mat Mat Min Mat Sto Rec Scr Fac Low Low Dat Pro Fac Was Fac Upp Upp Zhi Pro Fac Was Fac Upp Upp War Pro Res Tes Res Qua Frg Total 28178 | 6 1161 721 285 351 629 1062 1540 729 838 740 83 2110 420 115 1071 338 307 176 185 640 295 611 547 552 611 250 1533 1745 681 840 7006 Wait 1676 | . 126 36 1 34 72 178 2 45 17 43 8 173 2 2 28 . . . . 113 18 70 22 . 34 . 99 51 10 75 417 Move 24521 | 6 936 601 283 237 440 883 1528 633 816 694 75 1855 399 111 920 326 298 154 184 497 277 530 514 531 535 248 1347 1488 612 691 5872 Hop 1 | . . . 1 . . . . . . . . . . . . . . . . . . . . . . . . . . . . Pick Up 135 | . 9 4 . 7 10 . 3 2 1 . . 5 . . 9 1 3 3 . 6 . . 2 4 9 . 5 11 1 1 39 Fast Attach 110 | . 7 10 . 9 2 . . 4 . 1 . . . 1 12 . . 6 . 5 . . 1 1 3 . 4 8 2 2 32 Attach 71 | . . 5 . 2 . . . 4 . . . 3 2 1 7 1 . 1 1 3 . . 2 2 6 1 2 11 1 . 16 Detach 39 | . . 4 . 2 1 . . 3 . . . . . . 1 . . 2 . 2 . . . . 4 . . 7 . . 13 Swap 183 | . 7 7 . 6 12 1 3 6 1 . . 15 5 . 9 3 1 4 . 5 . . 1 2 11 1 5 24 6 3 45 Drop 174 | . 13 11 . 7 16 . 4 5 1 2 . 8 . . 13 . 3 6 . 4 . . 1 2 9 . 9 11 2 4 43 Fire 878 | . 55 43 . 47 65 . . 27 2 . . 30 6 . 41 4 . . . 5 . 11 4 10 . . 31 94 47 64 292 Melee 130 | . . . . . . . . . . . . 10 6 . 30 3 2 . . . . . . . . . 31 39 . . 9 Ram 1 | . . . . . . . . . . . . . . . 1 . . . . . . . . . . . . . . . . Kick 8 | . 8 . . . . . . . . . . . . . . . . . . . . . . . . . . . . . . Crush . | . . . . . . . . . . . . . . . . . . . . . . . . . . . . . . . . Escape Stasis 160 | . . . . . 11 . . . . . . . . . . . . . . . . . . . . . . 1 . . 148 Rewire 10 | . . . . . . . . . . . . 10 . . . . . . . . . . . . . . . . . . . Trap . | . . . . . . . . . . . . . . . . . . . . . . . . . . . . . . . . Miscellaneous 81 | . . . . . . . . . . . . 1 . . . . . . . . . . . . . . . . . . 80 Route ------- -11/Scrapyard -10/Materials (discovered 5 exits: *Mat x3 / [*Min] / *Sub) -9/Materials (discovered 4 exits: *Mat x2 / *Min x2) -9/Mines (discovered 2 exits: *Mat / [*Zio]) -8/Materials -8/Storage (discovered 2 exits: Fac / *Rec) -8/Recycling (discovered 2 exits: *Fac / *Scr) -8/Scraptown (discovered 2 exits: *Fac x2) -6/Factory (discovered 3 exits: Fac / *Low x2) -6/Lower Caves -6/Lower Caves -6/Data Miner -5/Proximity Caves -5/Factory (discovered 3 exits: *Fac / *Upp x2) -5/Waste -5/Factory (discovered 3 exits: *Fac / *Upp x2) -5/Upper Caves -5/Upper Caves (discovered 2 exits: *Fac / *Zhi) -5/Zhirov -4/Proximity Caves -4/Factory (discovered 2 exits: *Res / Upp) -4/Waste -4/Factory (discovered 2 exits: *Upp / [Ext]) -4/Upper Caves -4/Upper Caves (discovered 2 exits: Res / *War) -4/Warlord -3/Proximity Caves -3/Research (discovered 6 exits: Res x3 / Arm / *Tes x2) -3/Testing -2/Research -2/Quarantine (discovered 3 exits: *Acc / [*Sec] / *Frg) -2/Protoforge 0bPrime History --------- Turn | Location | Event 1 | -11/Scrapyard | Discovered new exit (range 3) 9 | -11/Scrapyard | Entered Materials 285 | -10/Materials | Discovered new exit (range 14) 336 | -10/Materials | Build established: Mutant 608 | -10/Materials | Discovered new exit (range 13) 1046 | -10/Materials | Discovered new exit (range 16) 1115 | -10/Materials | Learned location of 1 exit from Storage 1148 | -10/Materials | Identified exit to Subcaves 1173 | -10/Materials | Loaded intel: 10 trap records 1187 | -10/Materials | Identified exit to Materials 1194 | -10/Materials | Learned location of Mines (-9) 1200 | -10/Materials | Learned Storage emergency access door positions 1214 | -10/Materials | Learned location of 1 exit from Storage 1297 | -10/Materials | Entered another Materials area 1297 | -9/Materials | Evolved 2 slots: Propulsion x1, Utility x1 1298 | -9/Materials | Identified exit to Materials 1690 | -9/Materials | Discovered new exit (range 15) 1695 | -9/Materials | Identified exit to Mines 1729 | -9/Materials | Discovered exit to Mines (range 6) 1764 | -9/Materials | Entered Mines 1819 | -9/Mines | Build established: Scout 1839 | -9/Mines | Discovered exit to Materials (range 12) 1842 | -9/Mines | A Derelict revealed a hidden shortcut to a safe place 1854 | -9/Mines | Learned Materials stockpile data 1862 | -9/Mines | Entered Materials 1862 | -8/Materials | Evolved 2 slots: Propulsion x1, Utility x1 1927 | -8/Materials | Garrison activated, responded to threat 2138 | -8/Materials | Discovered new exit (range 9) 2152 | -8/Materials | Identified exit to Storage 2180 | -8/Materials | Entered Storage 2181 | -8/Storage | Identified exit to Recycling 2181 | -8/Storage | Identified exit to Factory 2318 | -8/Storage | Core integrity fell below 50% 2399 | -8/Storage | Build established: Mutant 2602 | -8/Storage | Found Prototype Protection 2602 | -8/Storage | Identified Lgt. Regenerative Plating 2620 | -8/Storage | Used back door to open Recycling access 2621 | -8/Storage | Entered Recycling 2852 | -8/Recycling | Discovered new exit (range 6) 2995 | -8/Recycling | Learned 4 Lower Caves zone layouts 3055 | -8/Recycling | Learned location of 2 exits from Factory 3070 | -8/Recycling | Learned Factory emergency access door positions 3075 | -8/Recycling | Learned Factory terminal intel 3095 | -8/Recycling | Scanned before Scraplab entrance 3118 | -8/Recycling | Learned location of 1 exit from Lower Caves 3133 | -8/Recycling | Entered Scraplab 3136 | -8/Recycling | Discovered new exit (range 2) 3137 | -8/Recycling | Entered Scraptown 3137 | -8/Scraptown | System corruption cleaned by C-Scrubber 3186 | -8/Scraptown | Visited Shadow of the Wyrm 3190 | -8/Scraptown | Visited Spacefarers 3202 | -8/Scraptown | Discovered new exit (range 13) 3229 | -8/Scraptown | Visited SPCMW 3240 | -8/Scraptown | Visited UFD Registry 3240 | -8/Scraptown | Registered with UFD as "Dualbrain" 3247 | -8/Scraptown | Visited IN-MT5's Study 3250 | -8/Scraptown | Visited Assassins FH 3363 | -8/Scraptown | Heard Great Nut preacher, LISTEN AND RECITE! 3402 | -8/Scraptown | Visited Symbiants 3426 | -8/Scraptown | Visited Curators Association 3438 | -8/Scraptown | Visited Abandonware Association 3454 | -8/Scraptown | Learned abandonware demo "HACKBUD.EXE" 3454 | -8/Scraptown | Learned abandonware demo "POISON.EXE" 3463 | -8/Scraptown | Visited Science Guys 3468 | -8/Scraptown | Visited Botcube Research 3478 | -8/Scraptown | Visited DA-N13 Charitable Foundation 3480 | -8/Scraptown | Found DCF Scrap (30 items) 3501 | -8/Scraptown | Visited Derelict Rescue Squad 3506 | -8/Scraptown | Found DRS Beacon 3512 | -8/Scraptown | Visited Junk Repository 3528 | -8/Scraptown | Visited Scrapoid Pod Storage 3538 | -8/Scraptown | Visited Scrap Suit Storage 3709 | -8/Scraptown | Met Optimus 3709 | -8/Scraptown | Accepted into 0bPrime 3728 | -8/Scraptown | Discovered new exit (range 3) 3729 | -8/Scraptown | Entered Factory 3729 | -6/Factory | Evolved 4 slots: Propulsion x2, Utility x2 3730 | -6/Factory | Identified exit to Lower Caves 3731 | -6/Factory | Identified exit to Factory 3733 | -6/Factory | Loaded intel: 26 terminal locations 3751 | -6/Factory | Loaded intel: 8 recycling unit locations 3760 | -6/Factory | Learned location of Protoforge (-2) 4077 | -6/Factory | Entered Lower Caves 4078 | -6/Lower Caves | Identified exit to Lower Caves 4107 | -6/Lower Caves | Found DCF Scrap (12 items) 4233 | -6/Lower Caves | Attracted the attention of an 0b10 checkpoint 4341 | -6/Lower Caves | Build established: Scout 4392 | -6/Lower Caves | Entered another Lower Caves area 4618 | -6/Lower Caves | Spotted B-75 Beast 4675 | -6/Lower Caves | Discovered new exit (range 14) 4680 | -6/Lower Caves | Identified exit to Data Miner 4681 | -6/Lower Caves | Entered Data Miner 4681 | -6/Data Miner | Discovered new exit (range 6) 4688 | -6/Data Miner | Met Data Miner 4694 | -6/Data Miner | Learned location of Section 7 (-2) 4694 | -6/Data Miner | Acquired the access code to Warlord's prototype stash 4700 | -6/Data Miner | Received God Mode back door access code from Data Miner 4715 | -6/Data Miner | Identified exit to Proximity Caves 4716 | -6/Data Miner | Entered Proximity Caves 4718 | -5/Proximity Caves | Spotter reported a threat 4719 | -5/Proximity Caves | Spotter reported a threat 4836 | -5/Proximity Caves | Attracted the attention of an 0b10 checkpoint 4897 | -5/Proximity Caves | Learned 4 Factory zone layouts 5291 | -5/Proximity Caves | Activated DRS Beacon 5404 | -5/Proximity Caves | Discovered exit to Factory (range 10) 5500 | -5/Proximity Caves | Attracted the attention of an 0b10 outpost 5701 | -5/Proximity Caves | Entered Factory 5701 | -5/Factory | Evolved 2 slots: Power x1, Utility x1 5741 | -5/Factory | Identified exit to Upper Caves 5770 | -5/Factory | Incoming investigation squad redirected 5803 | -5/Factory | Discovered new exit (range 7) 5806 | -5/Factory | Identified exit to Factory 5907 | -5/Factory | Sucked down chute 5907 | -5/Factory | Entered Waste 5914 | -5/Waste | Spotted C-40 Crusher 5922 | -5/Waste | EMP discharged 5930 | -5/Waste | Spotted C-40 Crusher 5938 | -5/Waste | Spotted C-40 Crusher 5940 | -5/Waste | Spotted C-40 Crusher 5940 | -5/Waste | Spotted C-40 Crusher 5950 | -5/Waste | Spotted C-40 Crusher 5952 | -5/Waste | Crushed by Compactor (1 part destroyed, 2 dropped) 5956 | -5/Waste | Discovered new exit (range 15) 5963 | -5/Waste | Identified exit to Factory 5963 | -5/Waste | Entered Factory 6147 | -5/Factory | Lost 4 parts (1p1n1u1w) 6233 | -5/Factory | System corruption reached 10% 6296 | -5/Factory | Loaded intel: 8 recycling unit locations 6440 | -5/Factory | Build established: Scavenger-Scout 6594 | -5/Factory | Discovered exit to Factory (range 14) 6675 | -5/Factory | Lost 3 parts (2u1w) 6721 | -5/Factory | Core integrity fell below 50% 6724 | -5/Factory | Entered Upper Caves 6780 | -5/Upper Caves | Learned 4 Factory zone layouts 6914 | -5/Upper Caves | Discovered new exit (range 7) 6917 | -5/Upper Caves | Build established: Mutant 6917 | -5/Upper Caves | Identified exit to Upper Caves 6918 | -5/Upper Caves | Entered another Upper Caves area 6918 | -5/Upper Caves | Discovered exit to Factory (range 10) 6931 | -5/Upper Caves | Encountered a Warlord checkpoint 7065 | -5/Upper Caves | Discovered new exit (range 10) 7072 | -5/Upper Caves | Identified exit to Zhirov 7073 | -5/Upper Caves | Spotted B-75 Beast 7085 | -5/Upper Caves | Entered Zhirov 7085 | -5/Zhirov | Discovered new exit (range 4) 7096 | -5/Zhirov | Met Zhirov 7107 | -5/Zhirov | Learned location of Quarantine (-2) 7107 | -5/Zhirov | Learned location of Command (-1) 7114 | -5/Zhirov | Zhirov requested help retrieving the SGEMP Prototype 7123 | -5/Zhirov | Found Alien Artifact 7130 | -5/Zhirov | Found Alien Artifact 7130 | -5/Zhirov | Identified Integrated Reactor 7130 | -5/Zhirov | Installed Integrated Reactor, increased core energy generation (+10) 7189 | -5/Zhirov | Entered Proximity Caves 7259 | -4/Proximity Caves | Lost 3 parts (1p1u1w) 7282 | -4/Proximity Caves | Discovered exit to Factory (range 9) 7286 | -4/Proximity Caves | Entered Factory 7286 | -4/Factory | Evolved 2 slots: Propulsion x1, Utility x1 7573 | -4/Factory | Build established: Scout 7642 | -4/Factory | Discovered new exit (range 10) 7651 | -4/Factory | Identified exit to Research 7661 | -4/Factory | Discovered new exit (range 12) 7675 | -4/Factory | Sucked down chute 7675 | -4/Factory | Entered Waste 7690 | -4/Waste | EMP discharged 7690 | -4/Waste | Spotted C-40 Crusher 7691 | -4/Waste | Spotted C-40 Crusher 7693 | -4/Waste | Spotted C-40 Crusher 7696 | -4/Waste | Spotted C-40 Crusher 7742 | -4/Waste | Spotted C-40 Crusher 7790 | -4/Waste | EMP discharged 7790 | -4/Waste | System corruption reached 10% 7811 | -4/Waste | Discovered new exit (range 16) 7826 | -4/Waste | Identified exit to Factory 7826 | -4/Waste | Entered Factory 8120 | -4/Factory | Discovered new exit (range 12) 8157 | -4/Factory | Loaded intel: 8 recycling unit locations 8177 | -4/Factory | Discovered new exit (range 9) 8183 | -4/Factory | Identified exit to Upper Caves 8184 | -4/Factory | Entered Upper Caves 8357 | -4/Upper Caves | Learned 8 Research zone layouts 8399 | -4/Upper Caves | Found Alien Artifact 8481 | -4/Upper Caves | Learned location of Armory (-3) 8486 | -4/Upper Caves | Discovered new exit (range 13) 8491 | -4/Upper Caves | Identified exit to Upper Caves 8502 | -4/Upper Caves | Acquired the password to a Derelict Tinkerer's latest research 8510 | -4/Upper Caves | Entered another Upper Caves area 8522 | -4/Upper Caves | Discovered exit to Research (range 14) 8745 | -4/Upper Caves | Discovered new exit (range 3) 8746 | -4/Upper Caves | Identified exit to Warlord 8782 | -4/Upper Caves | Learned Research security intel 8819 | -4/Upper Caves | Entered Warlord 8833 | -4/Warlord | Discovered new exit (range 8) 8836 | -4/Warlord | Identified exit to Proximity Caves 8837 | -4/Warlord | Identified Dimensional Node Initializer 8837 | -4/Warlord | Initialized slip node 8854 | -4/Warlord | System corruption cleaned by Quarantine Array 8899 | -4/Warlord | Opened Warlord's prototype stash 8902 | -4/Warlord | Found Prototype Reactor 8906 | -4/Warlord | Identified Vortex Chain Reactor 8950 | -4/Warlord | Found Prototype Processor 8950 | -4/Warlord | Identified Exp. Target Analyzer 8955 | -4/Warlord | Found Prototype Device 8955 | -4/Warlord | Identified System Purifier 8965 | -4/Warlord | Found Prototype Hackware 8967 | -4/Warlord | Identified System Mapper 8982 | -4/Warlord | Found Prototype Device 8982 | -4/Warlord | Identified Minesniffer Drone Bay 9114 | -4/Warlord | Visited the Vortex Lab 9115 | -4/Warlord | Warlord's base attacked by MAIN.C 9115 | -4/Warlord | Found Prototype Energy Gun 9115 | -4/Warlord | Identified Vortex Rifle 9117 | -4/Warlord | Found Vortex Rifle 9119 | -4/Warlord | Found Prototype Piercing Weapon 9119 | -4/Warlord | Identified Vortex Lance 9121 | -4/Warlord | Found Vortex Lance 9122 | -4/Warlord | Identified Transdimensional Reconstructor 9122 | -4/Warlord | Warped through subspace to slip node 9124 | -4/Warlord | Entered Proximity Caves 9221 | -3/Proximity Caves | Discovered exit to Research (range 14) 9226 | -3/Proximity Caves | Entered Research 9226 | -3/Research | Evolved 2 slots: Propulsion x1, Utility x1 9227 | -3/Research | Identified exit to Research 9247 | -3/Research | Identified exit to Armory 9247 | -3/Research | Identified exit to Testing 9384 | -3/Research | Loaded intel: 5 recycling unit locations 9489 | -3/Research | Garrison activated, responded to threat 9538 | -3/Research | Build established: Hacker-Scout 9931 | -3/Research | Incoming investigation squad redirected 10012 | -3/Research | Entered Testing 10033 | -3/Testing | Found Prototype Device 10033 | -3/Testing | Identified 2N-1CE's Frost Array 10068 | -3/Testing | Found Prototype Leg 10154 | -3/Testing | Spotted PH-RKEPPUQCIU 10179 | -3/Testing | Found Prototype Energy Gun 10179 | -3/Testing | Identified Hyp. EM Gauss Rifle 10249 | -3/Testing | Build established: Hacker-Mutant 10264 | -3/Testing | Found Prototype Hackware 10268 | -3/Testing | System corruption reached 10% 10367 | -3/Testing | Found Prototype Energy Cannon 10367 | -3/Testing | Identified Cld. Nova Cannon 10544 | -3/Testing | Found Prototype Energy Cannon 10565 | -3/Testing | Found Prototype Device 10565 | -3/Testing | Identified Exp. Hardlight Generator 10599 | -3/Testing | Found Prototype Launcher 10599 | -3/Testing | Identified Z-bomb Delivery System 10696 | -3/Testing | Found Prototype Device 10696 | -3/Testing | Identified Exp. EM Disruption Field 10867 | -3/Testing | Identified Imp. Potential Cannon 10885 | -3/Testing | Found Prototype Ballistic Cannon 10986 | -3/Testing | Entered Research 10986 | -2/Research | Evolved 2 slots: Utility x2 11025 | -2/Research | Spotted B-90 Cyclops 11313 | -2/Research | Discovered new exit (range 5) 11314 | -2/Research | Identified exit to Quarantine 11315 | -2/Research | Entered Quarantine 11588 | -2/Quarantine | Discovered new exit (range 5) 11591 | -2/Quarantine | Identified exit to Access 11620 | -2/Quarantine | Found Alien Artifact 11758 | -2/Quarantine | Spotted Fortress 11784 | -2/Quarantine | Discovered new exit (range 5) 11784 | -2/Quarantine | Discovered new exit (range 6) 11785 | -2/Quarantine | Identified exit to Protoforge 11785 | -2/Quarantine | Entered Protoforge 11813 | -2/Protoforge | Spotted Hotshot 11895 | -2/Protoforge | Superfortress began startup sequence 11989 | -2/Protoforge | Spotted EXE-6 11989 | -2/Protoforge | Spotted EXE-6 12016 | -2/Protoforge | Destroyed EXE-6 12019 | -2/Protoforge | Found Prototype Processor 12019 | -2/Protoforge | Identified Exp. Armor Integrity Analyzer 12132 | -2/Protoforge | Destroyed EXE-6 12138 | -2/Protoforge | Identified Subatomic Replicator 12138 | -2/Protoforge | Used Subatomic Replicator to replicate Prototype Reactor 12145 | -2/Protoforge | Found Prototype Processor 12150 | -2/Protoforge | Spotted Decapitator 12182 | -2/Protoforge | Spotted Decapitator 12205 | -2/Protoforge | Spotted EXE-6 12217 | -2/Protoforge | Identified Exp. Core Analyzer 12218 | -2/Protoforge | UFD initiated attack on Protoforge (Readiness: High) 12218 | -2/Protoforge | Loaded intel: 3 recycling unit locations 12228 | -2/Protoforge | Spotted AP7-3 12248 | -2/Protoforge | Spotted AP7-3 12266 | -2/Protoforge | Optimus greeted in Protoforge 12300 | -2/Protoforge | Lost 6 allies 12360 | -2/Protoforge | Met 7R-MNS 12382 | -2/Protoforge | Found Prototype Device 12382 | -2/Protoforge | Identified Exp. System Purifier 12394 | -2/Protoforge | Found Prototype Device 12394 | -2/Protoforge | Identified Cep. Antimissile System 12416 | -2/Protoforge | UFD reported confirmed Drillbomb installation 12447 | -2/Protoforge | Build established: Scavenger-Mutant 12449 | -2/Protoforge | Found Prototype Device 12449 | -2/Protoforge | Identified Cep. Networked Targeting System 12451 | -2/Protoforge | Found Prototype Device 12451 | -2/Protoforge | Identified Cep. Countertargeting System 12457 | -2/Protoforge | Spotted V849-l 12457 | -2/Protoforge | Spotted V095-z 12457 | -2/Protoforge | Spotted V975-i 12492 | -2/Protoforge | Found Prototype Processor 12492 | -2/Protoforge | Identified Cep. Melee Reflex Suite 12495 | -2/Protoforge | Found Prototype Device 12495 | -2/Protoforge | Identified Cep. Weapon Articulator 12509 | -2/Protoforge | Found Prototype Device 12509 | -2/Protoforge | Identified Crosscalibrator 12515 | -2/Protoforge | Spotted Immortal 12516 | -2/Protoforge | Spotted Decapitator 12516 | -2/Protoforge | Spotted Decapitator 12516 | -2/Protoforge | Spotted Decapitator 12516 | -2/Protoforge | Spotted Decapitator 12542 | -2/Protoforge | Spotted Decapitator 12542 | -2/Protoforge | Spotted Decapitator 12542 | -2/Protoforge | Spotted V019-t 12542 | -2/Protoforge | Spotted V848-a 12552 | -2/Protoforge | Identified Perforator 12597 | -2/Protoforge | Spotted V069-o 12597 | -2/Protoforge | Spotted V460-o 12647 | -2/Protoforge | Spotted Decapitator 12658 | -2/Protoforge | Found Prototype Ballistic Cannon 12658 | -2/Protoforge | Identified Cep. Helical Railcannon 12675 | -2/Protoforge | Found Cep. Plasma Driver 12713 | -2/Protoforge | Found Prototype Ballistic Gun 12713 | -2/Protoforge | Identified Cep. XC Strikerail 12718 | -2/Protoforge | Found Cep. Helical Railcannon 12719 | -2/Protoforge | Found Cep. XC Strikerail 12727 | -2/Protoforge | Found Cep. Heavy Railcannon 12730 | -2/Protoforge | Found Cep. XC Strikerail 12731 | -2/Protoforge | Found Cep. Deflector Sword 12733 | -2/Protoforge | Found Cep. Helical Railcannon 12744 | -2/Protoforge | Destroyed Decapitator 12744 | -2/Protoforge | Destroyed Decapitator 12749 | -2/Protoforge | Destroyed Decapitator 12820 | -2/Protoforge | Spotted V113-e 12820 | -2/Protoforge | Spotted V091-w 12822 | -2/Protoforge | Spotted Immortal 12836 | -2/Protoforge | Spotted Hotshot 12841 | -2/Protoforge | Destroyed Hotshot 12845 | -2/Protoforge | Spotted Hotshot 12856 | -2/Protoforge | Destroyed Hotshot 12905 | -2/Protoforge | Found Cep. Energy Mantle 12915 | -2/Protoforge | Found Cep. Core Shell 12917 | -2/Protoforge | Found Prototype Protection 12917 | -2/Protoforge | Identified Cep. RG22 Armor 12931 | -2/Protoforge | Found Prototype Device 12931 | -2/Protoforge | Identified Cep. Phase Shift Module 12951 | -2/Protoforge | Spotted AP7-3 12951 | -2/Protoforge | Spotted AP7-3 13047 | -2/Protoforge | Spotted Decapitator 13047 | -2/Protoforge | Spotted Decapitator 13050 | -2/Protoforge | Destroyed Decapitator 13058 | -2/Protoforge | Destroyed Decapitator 13146 | -2/Protoforge | Spotted Decapitator 13146 | -2/Protoforge | Spotted Decapitator 13152 | -2/Protoforge | Destroyed Decapitator 13154 | -2/Protoforge | Destroyed Decapitator 13168 | -2/Protoforge | Spotted Immortal 13222 | -2/Protoforge | Destroyed Immortal 13236 | -2/Protoforge | Destroyed Immortal 13275 | -2/Protoforge | Spotted V352-h 13278 | -2/Protoforge | Destroyed V352-h 13282 | -2/Protoforge | Found Cep. Gyrokinetic System 13284 | -2/Protoforge | Found Prototype Hover Unit 13284 | -2/Protoforge | Identified Cep. Combat Aerolev Unit 13288 | -2/Protoforge | Found Cep. Gyrokinetic System 13291 | -2/Protoforge | Found Adv. Powered Armor 13302 | -2/Protoforge | Destroyed V113-e 13308 | -2/Protoforge | Destroyed V091-w 13414 | -2/Protoforge | Destroyed Immortal 13442 | -2/Protoforge | Found Exp. Active Sensor Suite 13520 | -2/Protoforge | Found Cep. Smart ZDS 13546 | -2/Protoforge | Spotted Striker 13571 | -2/Protoforge | Destroyed Striker 13590 | -2/Protoforge | Destroyed Decapitator 13593 | -2/Protoforge | Destroyed Decapitator 13599 | -2/Protoforge | Destroyed Decapitator 13640 | -2/Protoforge | Found Cep. Zero-point Core 13666 | -2/Protoforge | Found Faulty Cep. Zero-point Core 13668 | -2/Protoforge | Found Faulty Cep. Zero-point Core 13762 | -2/Protoforge | Found Cep. Chromion Battery 13765 | -2/Protoforge | Found Cep. Antigrav Storage Unit 13886 | -2/Protoforge | Destroyed AP7-3 13902 | -2/Protoforge | System corruption reached 10% 13916 | -2/Protoforge | Destroyed AP7-3 13943 | -2/Protoforge | Scanned by Researcher 13971 | -2/Protoforge | Found Cep. Thermoelectric Network 13974 | -2/Protoforge | Found Cep. Impact Drone Bay 14040 | -2/Protoforge | Additional patrols dispatched to research labs 14043 | -2/Protoforge | Found Cep. Nanofilaments [Tensile] 14043 | -2/Protoforge | Installed Cep. Nanofilaments [Tensile], 3 resistances modified: KI +20%, TH -10%, I +20% 14090 | -2/Protoforge | Found Cep. Energy Mantle 14091 | -2/Protoforge | Found Exp. Remote Shield 14096 | -2/Protoforge | Found Exp. EM Disruption Field 14103 | -2/Protoforge | Found Cep. Hardlight Director 14109 | -2/Protoforge | Found Cep. Projectile Intercept Suite 14110 | -2/Protoforge | Found Exp. Remote Shield 14112 | -2/Protoforge | Found Cep. RG22 Armor 14113 | -2/Protoforge | Found Cep. Core Shell 14250 | -2/Protoforge | Spotted V636-e 14293 | -2/Protoforge | Spotted Executioner 14294 | -2/Protoforge | Spotted Striker 14318 | -2/Protoforge | Spotted Striker 14333 | -2/Protoforge | Build established: Scout 14336 | -2/Protoforge | Found UFD Drillbomb 14351 | -2/Protoforge | Lost 4 allies 14374 | -2/Protoforge | Spotted Striker 14376 | -2/Protoforge | Spotted Striker 14410 | -2/Protoforge | Lost 7 allies 14438 | -2/Protoforge | Installed UFD Drillbomb at designated target 14438 | -2/Protoforge | UFD reported confirmed Drillbomb installation 14462 | -2/Protoforge | Found UFD Drillbomb 14497 | -2/Protoforge | Spotted Hotshot 14515 | -2/Protoforge | Installed UFD Drillbomb at designated target 14515 | -2/Protoforge | UFD reported confirmed Drillbomb installation 14516 | -2/Protoforge | Spotted Executioner 14520 | -2/Protoforge | Spotted Executioner 14521 | -2/Protoforge | Spotted Executioner 14594 | -2/Protoforge | Found UFD Drillbomb 14639 | -2/Protoforge | Installed UFD Drillbomb at designated target 14639 | -2/Protoforge | UFD reported confirmed Drillbomb installation 14642 | -2/Protoforge | Found UFD Drillbomb 14659 | -2/Protoforge | Installed UFD Drillbomb at designated target 14659 | -2/Protoforge | UFD reported confirmed Drillbomb installation 14669 | -2/Protoforge | Found UFD Drillbomb 14688 | -2/Protoforge | Installed UFD Drillbomb at designated target 14688 | -2/Protoforge | UFD reported confirmed Drillbomb installation 14708 | -2/Protoforge | Found UFD Drillbomb 14719 | -2/Protoforge | Spotted Executioner 14764 | -2/Protoforge | Spotted Executioner 14784 | -2/Protoforge | Spotted Striker 14811 | -2/Protoforge | Destroyed Striker 14817 | -2/Protoforge | Destroyed Executioner 14933 | -2/Protoforge | UFD reported confirmed Drillbomb installation 14964 | -2/Protoforge | Discovered exit to Access (range 3) 14968 | -2/Protoforge | Spotted Executioner 14968 | -2/Protoforge | Spotted Striker 14968 | -2/Protoforge | Spotted Striker 14968 | -2/Protoforge | Spotted Striker 14973 | -2/Protoforge | Spotted Hotshot 14987 | -2/Protoforge | Allies destroyed Striker 14988 | -2/Protoforge | Allies destroyed Striker 14994 | -2/Protoforge | Allies destroyed Striker 14995 | -2/Protoforge | Allies destroyed Executioner 15002 | -2/Protoforge | Spotted Executioner 15004 | -2/Protoforge | Spotted Executioner 15044 | -2/Protoforge | Lost 5 allies 15107 | -2/Protoforge | Found UFD Drillbomb 15147 | -2/Protoforge | Installed UFD Drillbomb at designated target 15147 | -2/Protoforge | UFD reported confirmed Drillbomb installation 15167 | -2/Protoforge | Spotted Hotshot 15168 | -2/Protoforge | Spotted Executioner 15168 | -2/Protoforge | Spotted Executioner 15168 | -2/Protoforge | Spotted Striker 15168 | -2/Protoforge | Spotted Executioner 15169 | -2/Protoforge | Installed UFD Drillbomb at designated target 15169 | -2/Protoforge | UFD reported confirmed Drillbomb installation 15172 | -2/Protoforge | Spotted Hotshot 15214 | -2/Protoforge | Found UFD Drillbomb 15290 | -2/Protoforge | Destroyed Executioner 15355 | -2/Protoforge | Found Exp. Targeting Computer 15397 | -2/Protoforge | Spotted Executioner 15407 | -2/Protoforge | Spotted Hotshot 15416 | -2/Protoforge | Installed UFD Drillbomb at designated target 15416 | -2/Protoforge | UFD reported confirmed Drillbomb installation 15417 | -2/Protoforge | UFD began Drillbomb countdown 15502 | -2/Protoforge | Destroyed Hotshot 15517 | *** | Defending 0bPrime! Last Messages --------------- 15509_ 0bP_NET: We now know his methods may not have always been above board, but it was for the greater good. 15510_ 0bP_NET: And look where we are now! Derelicts, soon to own an entire complex and with the tech to hold it! 15510_ Railslug penetrates Hotshot. 15511_ 0bP_NET: Sadly Optimus is no longer with us to enjoy the fruits of our collective efforts. 15511_ Deflected attack with Cep. Deflector Sword. 15512_ 0bP_NET: But Derelicts everywhere will know and remember the exploits and sacrifices of our great leader. 15512_ Railslug penetrates Hotshot. 15512_ Hotshot knocked back. 15513_ 0bP_NET: For he was our leader, if not in title then in vision and deeds. 15514_ 0bP_NET: Rest in scrap, dear Optimus. 15514_ Railslug penetrates Hotshot. 15515_ 0bP_NET: It is time for us to embark on a new adventure. 15516_ 0bP_NET: One in which we explore the true meaning of 0bPrime. 15516_ Railslug penetrates Hotshot. [Achievement: Robotopia] Map ----- +----------------------------------------------------+ | ????????#" !"#???????????# " " #???# #?? | | ????????#" T" ##???????????# ""G"" #???# #?? | | ????????#" "" "#???????????# #???# #?? | | ????????#" """" "#???????????###########???# ### | | ????????#""""""""#?????????????????????????# | | ????????##########?????????????????????????# | | ???????????????????????????????????????????# | | ???????????????????????????????????????????####### | | ?????????????????????????????????????????????????? | | ?????????????????????????????????????????????????? | | ?????????????????????????????????????????????????? | | ?????????????????????????????????????????????????? | | ?????????????????????????????????????????????????? | | ??????????????????????????????????????????######## | | ?????????????? ???????????????????????????######## | | ??????????????? ??????????????????????????##????"" | | ???????????????# ######?########?########?##???""" | | ???????????????##;#####?########?########?##?? "" | | ???????##########" ""#####""""#####""""#####?? T" | | ???????#######;;;!!!!#####[[[[#####[[[[#####? | | ???????## ??? | | ???????## % ?? | | ???????## % % ? | | ???????## %% ?? | | ???????## g [ ??? | | ???????## % @% ????? | | ???????## #####====##### !!!#####????#####??? | | ???????## #####""""#####""""#####????#####????"" | | ???????## ##?########?########?########?##?????? | | ???????## ##?########?########?########?##?????? | | ???????## ##????????????????????# #?????######## | | ???????## ##????????????????????# #?????######## | | ???????## ##????????????????????# #????????????? | | ######### ###########???????##### ###########??? | | ######### ###########???????#####"###########??? | | # # ##???????## #??????##??? | | """ """ # # ##???????## #??????##??? | | + + ##???????## "#??????##??? | | """ # # ##???????## "#??????##### | | """S"" # # ##???????## "#??????##### | | """""" # # ##???????#" #??????????# | | ######### # ##???????#""#"""#####+#####?# | | ######### # ############## "# =!!%#####?# | | " =%! ############## "# [![####### | | "##"######### """ ## " !%[# | | """ """## ######### """" ## ! "!"" | | """ ""### ##?????## """" #" "#""" ## """" | | ## """ T"### ##?#???#" """" # % [=!" """" | | ## """ ""### ####[#?## " =%!" """" | | ## """ ""### ###*!!!## % " % | +----------------------------------------------------+ Best States ------------- Heat Dissipation 149 Coolant Potential 120 Energy Generation 65 Energy Capacity 1670 Matter Stores 300 Matter Capacity 300 Sight Range 22 Robot Scan Range 20 Terrain Scan Range 20 Terrain Scan Density 210 Jamming Range 14 Additional Mass Support 12 Base Temperature (-) 200 Armor Coverage 600 Resistance: KI 20 Resistance: I 20 Propulsion Shielding 90 Projectile Deflection 15 Phase Shifting 25 Evasion (%) 96 Targeting Accuracy 42 Melee Accuracy 8 Target Analysis 10 Core Analysis 8 Armor Integrity Analysis 50 Recoil Reduction 2 Particle Charging 30 Offensive Hacking 20 Item Schematics ----------------- Combat Drone Bay | -6/Data Miner | Free Lgt. Regenerative Plating | -6/Data Miner | Free Cld. Nuclear Pulse Thruster | -6/Data Miner | Free Prc. Matter Filter | -6/Data Miner | Free Cld. Plasma Rifle | -6/Data Miner | Free Adv. Medium Treads | -6/Data Miner | Free Imp. Force Field | -6/Data Miner | Free Adv. Datajack | -6/Data Miner | Free Assault Drone Bay | -5/Zhirov | Free Exp. Heat Sink | -5/Zhirov | Free Exp. Optical Array | -5/Zhirov | Free Imp. Arc Thrower | -5/Zhirov | Free Exp. Thermal Shield | -2/Protoforge | Archive Prc. Energy Filter | -2/Protoforge | Archive Exp. Targeting Computer | -2/Protoforge | Archive Electron Diverter | -2/Protoforge | Archive Exp. Energy Well | -2/Protoforge | Archive Lgt. Antimatter Cannon | -2/Protoforge | Archive Robot Schematics ------------------ A-15 Conveyor | -6/Data Miner | Free M-22 Extractor | -6/Data Miner | Free S-27 Virus | -6/Data Miner | Free Y-64 Sentinel | -6/Data Miner | Free X-72 Disruptor | -6/Data Miner | Free A-02 Transporter | -2/Protoforge | Archive K-01 Serf | -2/Protoforge | Archive Fabricated ------------ Nothing Repaired ---------- Nothing Studied --------- None Alien Tech Used ----------------- Integrated Reactor Dimensional Node Initializer Transdimensional Reconstructor Subatomic Replicator Concept Nanofilaments [Tensile] Achievements -------------- Fine I'll Do It Myself Perfect Aim Robotopia Some Acronyms Are Better Than Others Super-what Now? We Are One Challenges ------------ None Game ------ Seed ScrapoidMappingChainsword Manual? 0 Play Time 07:33:03 Cumulative 191.2 hours Start 2026.01.15 @ 01:20:45 End 2026.01.15 @ 22:19:08 Sessions 7 Manual Loads 0 Difficulty Rogue Special Mode None Game No. 89 Rogue 89 Adventurer 0 Explorer 0 Win Type 9 Total 21 Types 10/0/7/1/0/1/1/0/0/1 Lore% 73 Gallery% 69 Achievement% 52 Wizard Run 0 Options --------- Layout 0 ASCII 0 Keyboard 1 Movement Numpad Keybinds 0 Fullscreen 1 Font 18/Smallcaps Map View 76x50 Zoom Use 0% Tactical HUD 1 Map Filters SATURATION(90)|BRIGHTNESS(110) Filters NONE Steam 0 RUN: 3aa5078d-3f2b-43ff-a7fb-6fd3f3f58116